Workbook

Sheet Historical
A1: From 2022-12-29 Sites Historical WAA Tool
B6: Including Face Value Demands | E6: No Face Value Demands
A7: Date | B7: TCC Diversion | C7: GCID Diversion | D7: Total Diversion | E7: TCC Diversion | F7: GCID Diversion | G7: Total Diversion
A8: 2000-01-01 | B8: 0 | C8: 0 | D8: 0 | E8: 0 | F8: 0 | G8: 0
A9: 2000-01-02 | B9: 0 | C9: 0 | D9: 0 | E9: 0 | F9: 0 | G9: 0
A10: 2000-01-03 | B10: 0 | C10: 0 | D10: 0 | E10: 0 | F10: 0 | G10: 0
A11: 2000-01-04 | B11: 0 | C11: 0 | D11: 0 | E11: 0 | F11: 0 | G11: 0
A12: 2000-01-05 | B12: 0 | C12: 0 | D12: 0 | E12: 0 | F12: 0 | G12: 0
A13: 2000-01-06 | B13: 0 | C13: 0 | D13: 0 | E13: 0 | F13: 0 | G13: 0
A14: 2000-01-07 | B14: 0 | C14: 0 | D14: 0 | E14: 0 | F14: 0 | G14: 0
A15: 2000-01-08 | B15: 0 | C15: 0 | D15: 0 | E15: 0 | F15: 0 | G15: 0
A16: 2000-01-09 | B16: 0 | C16: 0 | D16: 0 | E16: 0 | F16: 0 | G16: 0
A17: 2000-01-10 | B17: 0 | C17: 0 | D17: 0 | E17: 0 | F17: 0 | G17: 0
A18: 2000-01-11 | B18: 0 | C18: 0 | D18: 0 | E18: 0 | F18: 0 | G18: 0
A19: 2000-01-12 | B19: 0 | C19: 0 | D19: 0 | E19: 0 | F19: 0 | G19: 0
A20: 2000-01-13 | B20: 0 | C20: 0 | D20: 0 | E20: 0 | F20: 0 | G20: 0
A21: 2000-01-14 | B21: 0 | C21: 0 | D21: 0 | E21: 0 | F21: 0 | G21: 0
A22: 2000-01-15 | B22: 0 | C22: 0 | D22: 0 | E22: 0 | F22: 0 | G22: 0
A23: 2000-01-16 | B23: 0 | C23: 0 | D23: 0 | E23: 0 | F23: 0 | G23: 0
A24: 2000-01-17 | B24: 0 | C24: 0 | D24: 0 | E24: 0 | F24: 0 | G24: 0
A25: 2000-01-18 | B25: 0 | C25: 0 | D25: 0 | E25: 0 | F25: 0 | G25: 0
A26: 2000-01-19 | B26: 0 | C26: 0 | D26: 0 | E26: 0 | F26: 0 | G26: 0
A27: 2000-01-20 | B27: 0 | C27: 0 | D27: 0 | E27: 0 | F27: 0 | G27: 0
A28: 2000-01-21 | B28: 0 | C28: 0 | D28: 0 | E28: 0 | F28: 0 | G28: 0
A29: 2000-01-22 | B29: 0 | C29: 0 | D29: 0 | E29: 0 | F29: 0 | G29: 0
A30: 2000-01-23 | B30: 0 | C30: 0 | D30: 0 | E30: 0 | F30: 0 | G30: 0
A31: 2000-01-24 | B31: 0 | C31: 0 | D31: 0 | E31: 0 | F31: 0 | G31: 0
A32: 2000-01-25 | B32: 0 | C32: 0 | D32: 0 | E32: 0 | F32: 0 | G32: 0
A33: 2000-01-26 | B33: 541.1239532 | C33: 0 | D33: 541.1239532 | E33: 2200 | F33: 2000 | G33: 4200
A34: 2000-01-27 | B34: 2147.685207 | C34: 0 | D34: 2147.685207 | E34: 2200 | F34: 2000 | G34: 4200
A35: 2000-01-28 | B35: 2200 | C35: 1384.527799 | D35: 3584.527799 | E35: 2200 | F35: 2000 | G35: 4200
A36: 2000-01-29 | B36: 2200 | C36: 2000 | D36: 4200 | E36: 2200 | F36: 2000 | G36: 4200
A37: 2000-01-30 | B37: 2200 | C37: 2000 | D37: 4200 | E37: 2200 | F37: 2000 | G37: 4200
A38: 2000-01-31 | B38: 2200 | C38: 2000 | D38: 4200 | E38: 2200 | F38: 2000 | G38: 4200
A39: 2000-02-01 | B39: 228.8994304 | C39: 0 | D39: 228.8994304 | E39: 2200 | F39: 2000 | G39: 4200
A40: 2000-02-02 | B40: 1820.161335 | C40: 0 | D40: 1820.161335 | E40: 2200 | F40: 2000 | G40: 4200
A41: 2000-02-03 | B41: 2200 | C41: 1182.613716 | D41: 3382.613716 | E41: 2200 | F41: 2000 | G41: 4200
A42: 2000-02-04 | B42: 2200 | C42: 2000 | D42: 4200 | E42: 2200 | F42: 2000 | G42: 4200
A43: 2000-02-05 | B43: 2200 | C43: 2000 | D43: 4200 | E43: 2200 | F43: 2000 | G43: 4200
A44: 2000-02-06 | B44: 2200 | C44: 2000 | D44: 4200 | E44: 2200 | F44: 2000 | G44: 4200
A45: 2000-02-07 | B45: 2200 | C45: 2000 | D45: 4200 | E45: 2200 | F45: 2000 | G45: 4200
A46: 2000-02-08 | B46: 2200 | C46: 2000 | D46: 4200 | E46: 2200 | F46: 2000 | G46: 4200
A47: 2000-02-09 | B47: 2200 | C47: 2000 | D47: 4200 | E47: 2200 | F47: 2000 | G47: 4200
A48: 2000-02-10 | B48: 2200 | C48: 2000 | D48: 4200 | E48: 2200 | F48: 2000 | G48: 4200
A49: 2000-02-11 | B49: 2200 | C49: 2000 | D49: 4200 | E49: 2200 | F49: 2000 | G49: 4200
A50: 2000-02-12 | B50: 2200 | C50: 2000 | D50: 4200 | E50: 2200 | F50: 2000 | G50: 4200
A51: 2000-02-13 | B51: 2200 | C51: 2000 | D51: 4200 | E51: 2200 | F51: 2000 | G51: 4200
A52: 2000-02-14 | B52: 2200 | C52: 2000 | D52: 4200 | E52: 2200 | F52: 2000 | G52: 4200
A53: 2000-02-15 | B53: 2200 | C53: 2000 | D53: 4200 | E53: 2200 | F53: 2000 | G53: 4200
A54: 2000-02-16 | B54: 2200 | C54: 2000 | D54: 4200 | E54: 2200 | F54: 2000 | G54: 4200
A55: 2000-02-17 | B55: 2200 | C55: 2000 | D55: 4200 | E55: 2200 | F55: 2000 | G55: 4200
A56: 2000-02-18 | B56: 2200 | C56: 2000 | D56: 4200 | E56: 2200 | F56: 2000 | G56: 4200
A57: 2000-02-19 | B57: 2200 | C57: 2000 | D57: 4200 | E57: 2200 | F57: 2000 | G57: 4200
A58: 2000-02-20 | B58: 2200 | C58: 2000 | D58: 4200 | E58: 2200 | F58: 2000 | G58: 4200
A59: 2000-02-21 | B59: 2200 | C59: 2000 | D59: 4200 | E59: 2200 | F59: 2000 | G59: 4200
A60: 2000-02-22 | B60: 2200 | C60: 2000 | D60: 4200 | E60: 2200 | F60: 2000 | G60: 4200
A61: 2000-02-23 | B61: 2200 | C61: 2000 | D61: 4200 | E61: 2200 | F61: 2000 | G61: 4200
A62: 2000-02-24 | B62: 2200 | C62: 2000 | D62: 4200 | E62: 2200 | F62: 2000 | G62: 4200
A63: 2000-02-25 | B63: 2200 | C63: 2000 | D63: 4200 | E63: 2200 | F63: 2000 | G63: 4200
A64: 2000-02-26 | B64: 2200 | C64: 2000 | D64: 4200 | E64: 2200 | F64: 2000 | G64: 4200
A65: 2000-02-27 | B65: 2200 | C65: 2000 | D65: 4200 | E65: 2200 | F65: 2000 | G65: 4200
A66: 2000-02-28 | B66: 2200 | C66: 2000 | D66: 4200 | E66: 2200 | F66: 2000 | G66: 4200
A67: 2000-02-29 | B67: 2200 | C67: 2000 | D67: 4200 | E67: 2200 | F67: 2000 | G67: 4200
A68: 2000-03-01 | B68: 2200 | C68: 2000 | D68: 4200 | E68: 2200 | F68: 2000 | G68: 4200
A69: 2000-03-02 | B69: 2200 | C69: 2000 | D69: 4200 | E69: 2200 | F69: 2000 | G69: 4200
A70: 2000-03-03 | B70: 2200 | C70: 2000 | D70: 4200 | E70: 2200 | F70: 2000 | G70: 4200
A71: 2000-03-04 | B71: 2200 | C71: 2000 | D71: 4200 | E71: 2200 | F71: 2000 | G71: 4200
A72: 2000-03-05 | B72: 2200 | C72: 2000 | D72: 4200 | E72: 2200 | F72: 2000 | G72: 4200
A73: 2000-03-06 | B73: 2200 | C73: 2000 | D73: 4200 | E73: 2200 | F73: 2000 | G73: 4200
A74: 2000-03-07 | B74: 2200 | C74: 2000 | D74: 4200 | E74: 2200 | F74: 2000 | G74: 4200
A75: 2000-03-08 | B75: 2200 | C75: 2000 | D75: 4200 | E75: 2200 | F75: 2000 | G75: 4200
A76: 2000-03-09 | B76: 2200 | C76: 2000 | D76: 4200 | E76: 2200 | F76: 2000 | G76: 4200
A77: 2000-03-10 | B77: 2200 | C77: 2000 | D77: 4200 | E77: 2200 | F77: 2000 | G77: 4200
A78: 2000-03-11 | B78: 2200 | C78: 2000 | D78: 4200 | E78: 2200 | F78: 2000 | G78: 4200
A79: 2000-03-12 | B79: 2200 | C79: 2000 | D79: 4200 | E79: 2200 | F79: 2000 | G79: 4200
A80: 2000-03-13 | B80: 2200 | C80: 2000 | D80: 4200 | E80: 2200 | F80: 2000 | G80: 4200
A81: 2000-03-14 | B81: 2200 | C81: 2000 | D81: 4200 | E81: 2200 | F81: 2000 | G81: 4200
A82: 2000-03-15 | B82: 2200 | C82: 2000 | D82: 4200 | E82: 2200 | F82: 2000 | G82: 4200
A83: 2000-03-16 | B83: 2200 | C83: 2000 | D83: 4200 | E83: 2200 | F83: 2000 | G83: 4200
A84: 2000-03-17 | B84: 2200 | C84: 2000 | D84: 4200 | E84: 2200 | F84: 2000 | G84: 4200
A85: 2000-03-18 | B85: 2200 | C85: 2000 | D85: 4200 | E85: 2200 | F85: 2000 | G85: 4200
A86: 2000-03-19 | B86: 2200 | C86: 2000 | D86: 4200 | E86: 2200 | F86: 2000 | G86: 4200
A87: 2000-03-20 | B87: 2200 | C87: 2000 | D87: 4200 | E87: 2200 | F87: 2000 | G87: 4200
A88: 2000-03-21 | B88: 2200 | C88: 2000 | D88: 4200 | E88: 2200 | F88: 2000 | G88: 4200
A89: 2000-03-22 | B89: 2200 | C89: 1859.229676 | D89: 4059.229676 | E89: 2200 | F89: 2000 | G89: 4200
A90: 2000-03-23 | B90: 2200 | C90: 459.229676 | D90: 2659.229676 | E90: 2200 | F90: 2000 | G90: 4200
A91: 2000-03-24 | B91: 1559.229676 | C91: 0 | D91: 1559.229676 | E91: 2200 | F91: 2000 | G91: 4200
A92: 2000-03-25 | B92: 1059.229676 | C92: 0 | D92: 1059.229676 | E92: 2200 | F92: 2000 | G92: 4200
A93: 2000-03-26 | B93: 659.229676 | C93: 0 | D93: 659.229676 | E93: 2200 | F93: 2000 | G93: 4200
A94: 2000-03-27 | B94: 559.229676 | C94: 0 | D94: 559.229676 | E94: 2200 | F94: 1600 | G94: 3800
A95: 2000-03-28 | B95: 479.229676 | C95: 0 | D95: 479.229676 | E95: 2200 | F95: 1100 | G95: 3300
A96: 2000-03-29 | B96: 159.229676 | C96: 0 | D96: 159.229676 | E96: 2200 | F96: 800 | G96: 3000
A97: 2000-03-30 | B97: 0 | C97: 0 | D97: 0 | E97: 2200 | F97: 400 | G97: 2600
A98: 2000-03-31 | B98: 0 | C98: 0 | D98: 0 | E98: 2000 | F98: 0 | G98: 2000
A99: 2000-04-01 | B99: 0 | C99: 0 | D99: 0 | E99: 1600 | F99: 0 | G99: 1600
A100: 2000-04-02 | B100: 0 | C100: 0 | D100: 0 | E100: 1000 | F100: 0 | G100: 1000
A101: 2000-04-03 | B101: 0 | C101: 0 | D101: 0 | E101: 600 | F101: 0 | G101: 600
A102: 2000-04-04 | B102: 0 | C102: 0 | D102: 0 | E102: 300 | F102: 0 | G102: 300
A103: 2000-04-05 | B103: 0 | C103: 0 | D103: 0 | E103: 100 | F103: 0 | G103: 100
A104: 2000-04-06 | B104: 0 | C104: 0 | D104: 0 | E104: 0 | F104: 0 | G104: 0
A105: 2000-04-07 | B105: 0 | C105: 0 | D105: 0 | E105: 0 | F105: 0 | G105: 0
A106: 2000-04-08 | B106: 0 | C106: 0 | D106: 0 | E106: 0 | F106: 0 | G106: 0
A107: 2000-04-09 | B107: 0 | C107: 0 | D107: 0 | E107: 0 | F107: 0 | G107: 0
A108: 2000-04-10 | B108: 0 | C108: 0 | D108: 0 | E108: 0 | F108: 0 | G108: 0
A109: 2000-04-11 | B109: 0 | C109: 0 | D109: 0 | E109: 400 | F109: 0 | G109: 400
A110: 2000-04-12 | B110: 0 | C110: 0 | D110: 0 | E110: 500 | F110: 0 | G110: 500
A111: 2000-04-13 | B111: 0 | C111: 0 | D111: 0 | E111: 500 | F111: 0 | G111: 500
A112: 2000-04-14 | B112: 0 | C112: 0 | D112: 0 | E112: 600 | F112: 0 | G112: 600
A113: 2000-04-15 | B113: 0 | C113: 0 | D113: 0 | E113: 1200 | F113: 0 | G113: 1200
A114: 2000-04-16 | B114: 0 | C114: 0 | D114: 0 | E114: 1000 | F114: 0 | G114: 1000
A115: 2000-04-17 | B115: 0 | C115: 0 | D115: 0 | E115: 900 | F115: 0 | G115: 900
A116: 2000-04-18 | B116: 1961.882473 | C116: 0 | D116: 1961.882473 | E116: 2200 | F116: 1000 | G116: 3200
A117: 2000-04-19 | B117: 2200 | C117: 586.4371457 | D117: 2786.437146 | E117: 2200 | F117: 2000 | G117: 4200
A118: 2000-04-20 | B118: 1793.035555 | C118: 0 | D118: 1793.035555 | E118: 2200 | F118: 2000 | G118: 4200
A119: 2000-04-21 | B119: 993.035555 | C119: 0 | D119: 993.035555 | E119: 2200 | F119: 2000 | G119: 4200
A120: 2000-04-22 | B120: 1093.035555 | C120: 0 | D120: 1093.035555 | E120: 2200 | F120: 1800 | G120: 4000
A121: 2000-04-23 | B121: 893.035555 | C121: 0 | D121: 893.035555 | E121: 2200 | F121: 900 | G121: 3100
A122: 2000-04-24 | B122: 593.035555 | C122: 0 | D122: 593.035555 | E122: 2200 | F122: 400 | G122: 2600
A123: 2000-04-25 | B123: 293.035555 | C123: 0 | D123: 293.035555 | E123: 1900 | F123: 0 | G123: 1900
A124: 2000-04-26 | B124: 0 | C124: 0 | D124: 0 | E124: 1200 | F124: 0 | G124: 1200
A125: 2000-04-27 | B125: 0 | C125: 0 | D125: 0 | E125: 300 | F125: 0 | G125: 300
A126: 2000-04-28 | B126: 0 | C126: 0 | D126: 0 | E126: 0 | F126: 0 | G126: 0
A127: 2000-04-29 | B127: 0 | C127: 0 | D127: 0 | E127: 0 | F127: 0 | G127: 0
A128: 2000-04-30 | B128: 0 | C128: 0 | D128: 0 | E128: 0 | F128: 0 | G128: 0
A129: 2000-05-01 | B129: 0 | C129: 0 | D129: 0 | E129: 0 | F129: 0 | G129: 0
A130: 2000-05-02 | B130: 0 | C130: 0 | D130: 0 | E130: 0 | F130: 0 | G130: 0
A131: 2000-05-03 | B131: 0 | C131: 0 | D131: 0 | E131: 0 | F131: 0 | G131: 0
A132: 2000-05-04 | B132: 0 | C132: 0 | D132: 0 | E132: 0 | F132: 0 | G132: 0
A133: 2000-05-05 | B133: 0 | C133: 0 | D133: 0 | E133: 0 | F133: 0 | G133: 0
A134: 2000-05-06 | B134: 0 | C134: 0 | D134: 0 | E134: 0 | F134: 0 | G134: 0
A135: 2000-05-07 | B135: 0 | C135: 0 | D135: 0 | E135: 0 | F135: 0 | G135: 0
A136: 2000-05-08 | B136: 0 | C136: 0 | D136: 0 | E136: 0 | F136: 0 | G136: 0
A137: 2000-05-09 | B137: 0 | C137: 0 | D137: 0 | E137: 0 | F137: 0 | G137: 0
A138: 2000-05-10 | B138: 0 | C138: 0 | D138: 0 | E138: 0 | F138: 0 | G138: 0
A139: 2000-05-11 | B139: 0 | C139: 0 | D139: 0 | E139: 0 | F139: 0 | G139: 0
A140: 2000-05-12 | B140: 0 | C140: 0 | D140: 0 | E140: 0 | F140: 0 | G140: 0
A141: 2000-05-13 | B141: 0 | C141: 0 | D141: 0 | E141: 0 | F141: 0 | G141: 0
A142: 2000-05-14 | B142: 0 | C142: 0 | D142: 0 | E142: 0 | F142: 0 | G142: 0
A143: 2000-05-15 | B143: 0 | C143: 0 | D143: 0 | E143: 0 | F143: 0 | G143: 0
A144: 2000-05-16 | B144: 0 | C144: 0 | D144: 0 | E144: 0 | F144: 0 | G144: 0
A145: 2000-05-17 | B145: 0 | C145: 0 | D145: 0 | E145: 0 | F145: 0 | G145: 0
A146: 2000-05-18 | B146: 0 | C146: 0 | D146: 0 | E146: 0 | F146: 0 | G146: 0
A147: 2000-05-19 | B147: 0 | C147: 0 | D147: 0 | E147: 0 | F147: 0 | G147: 0
A148: 2000-05-20 | B148: 0 | C148: 0 | D148: 0 | E148: 0 | F148: 0 | G148: 0
A149: 2000-05-21 | B149: 0 | C149: 0 | D149: 0 | E149: 0 | F149: 0 | G149: 0
A150: 2000-05-22 | B150: 0 | C150: 0 | D150: 0 | E150: 0 | F150: 0 | G150: 0
A151: 2000-05-23 | B151: 0 | C151: 0 | D151: 0 | E151: 100 | F151: 0 | G151: 100
A152: 2000-05-24 | B152: 0 | C152: 0 | D152: 0 | E152: 0 | F152: 0 | G152: 0
A153: 2000-05-25 | B153: 0 | C153: 0 | D153: 0 | E153: 0 | F153: 0 | G153: 0
A154: 2000-05-26 | B154: 0 | C154: 0 | D154: 0 | E154: 0 | F154: 0 | G154: 0
A155: 2000-05-27 | B155: 0 | C155: 0 | D155: 0 | E155: 0 | F155: 0 | G155: 0
A156: 2000-05-28 | B156: 0 | C156: 0 | D156: 0 | E156: 0 | F156: 0 | G156: 0
A157: 2000-05-29 | B157: 0 | C157: 0 | D157: 0 | E157: 0 | F157: 0 | G157: 0
A158: 2000-05-30 | B158: 0 | C158: 0 | D158: 0 | E158: 0 | F158: 0 | G158: 0
A159: 2000-05-31 | B159: 0 | C159: 0 | D159: 0 | E159: 0 | F159: 0 | G159: 0
A160: 2000-06-01 | B160: 0 | C160: 0 | D160: 0 | E160: 0 | F160: 0 | G160: 0
A161: 2000-06-02 | B161: 0 | C161: 0 | D161: 0 | E161: 0 | F161: 0 | G161: 0
A162: 2000-06-03 | B162: 0 | C162: 0 | D162: 0 | E162: 0 | F162: 0 | G162: 0
A163: 2000-06-04 | B163: 0 | C163: 0 | D163: 0 | E163: 0 | F163: 0 | G163: 0
A164: 2000-06-05 | B164: 0 | C164: 0 | D164: 0 | E164: 0 | F164: 0 | G164: 0
A165: 2000-06-06 | B165: 0 | C165: 0 | D165: 0 | E165: 0 | F165: 0 | G165: 0
A166: 2000-06-07 | B166: 0 | C166: 0 | D166: 0 | E166: 0 | F166: 0 | G166: 0
A167: 2000-06-08 | B167: 0 | C167: 0 | D167: 0 | E167: 0 | F167: 0 | G167: 0
A168: 2000-06-09 | B168: 0 | C168: 0 | D168: 0 | E168: 0 | F168: 0 | G168: 0
A169: 2000-06-10 | B169: 0 | C169: 0 | D169: 0 | E169: 0 | F169: 0 | G169: 0
A170: 2000-06-11 | B170: 0 | C170: 0 | D170: 0 | E170: 0 | F170: 0 | G170: 0
A171: 2000-06-12 | B171: 0 | C171: 0 | D171: 0 | E171: 0 | F171: 0 | G171: 0
A172: 2000-06-13 | B172: 0 | C172: 0 | D172: 0 | E172: 0 | F172: 0 | G172: 0
A173: 2000-06-14 | B173: 0 | C173: 0 | D173: 0 | E173: 0 | F173: 0 | G173: 0
A174: 2000-06-15 | B174: 0 | C174: 0 | D174: 0 | E174: 0 | F174: 0 | G174: 0
A175: 2000-06-16 | B175: 0 | C175: 0 | D175: 0 | E175: 0 | F175: 0 | G175: 0
A176: 2000-06-17 | B176: 0 | C176: 0 | D176: 0 | E176: 0 | F176: 0 | G176: 0
A177: 2000-06-18 | B177: 0 | C177: 0 | D177: 0 | E177: 0 | F177: 0 | G177: 0
A178: 2000-06-19 | B178: 0 | C178: 0 | D178: 0 | E178: 0 | F178: 0 | G178: 0
A179: 2000-06-20 | B179: 0 | C179: 0 | D179: 0 | E179: 0 | F179: 0 | G179: 0
A180: 2000-06-21 | B180: 0 | C180: 0 | D180: 0 | E180: 0 | F180: 0 | G180: 0
A181: 2000-06-22 | B181: 0 | C181: 0 | D181: 0 | E181: 0 | F181: 0 | G181: 0
A182: 2000-06-23 | B182: 0 | C182: 0 | D182: 0 | E182: 0 | F182: 0 | G182: 0
A183: 2000-06-24 | B183: 0 | C183: 0 | D183: 0 | E183: 0 | F183: 0 | G183: 0
A184: 2000-06-25 | B184: 0 | C184: 0 | D184: 0 | E184: 0 | F184: 0 | G184: 0
A185: 2000-06-26 | B185: 0 | C185: 0 | D185: 0 | E185: 0 | F185: 0 | G185: 0
A186: 2000-06-27 | B186: 0 | C186: 0 | D186: 0 | E186: 0 | F186: 0 | G186: 0
A187: 2000-06-28 | B187: 0 | C187: 0 | D187: 0 | E187: 0 | F187: 0 | G187: 0
A188: 2000-06-29 | B188: 0 | C188: 0 | D188: 0 | E188: 0 | F188: 0 | G188: 0
A189: 2000-06-30 | B189: 0 | C189: 0 | D189: 0 | E189: 0 | F189: 0 | G189: 0
A190: 2000-07-01 | B190: 0 | C190: 0 | D190: 0 | E190: 0 | F190: 0 | G190: 0
A191: 2000-07-02 | B191: 0 | C191: 0 | D191: 0 | E191: 0 | F191: 0 | G191: 0
A192: 2000-07-03 | B192: 0 | C192: 0 | D192: 0 | E192: 0 | F192: 0 | G192: 0
A193: 2000-07-04 | B193: 0 | C193: 0 | D193: 0 | E193: 0 | F193: 0 | G193: 0
A194: 2000-07-05 | B194: 0 | C194: 0 | D194: 0 | E194: 0 | F194: 0 | G194: 0
A195: 2000-07-06 | B195: 0 | C195: 0 | D195: 0 | E195: 0 | F195: 0 | G195: 0
A196: 2000-07-07 | B196: 0 | C196: 0 | D196: 0 | E196: 0 | F196: 0 | G196: 0
A197: 2000-07-08 | B197: 0 | C197: 0 | D197: 0 | E197: 0 | F197: 0 | G197: 0
A198: 2000-07-09 | B198: 0 | C198: 0 | D198: 0 | E198: 0 | F198: 0 | G198: 0
A199: 2000-07-10 | B199: 0 | C199: 0 | D199: 0 | E199: 0 | F199: 0 | G199: 0
A200: 2000-07-11 | B200: 0 | C200: 0 | D200: 0 | E200: 0 | F200: 0 | G200: 0
A201: 2000-07-12 | B201: 0 | C201: 0 | D201: 0 | E201: 0 | F201: 0 | G201: 0
A202: 2000-07-13 | B202: 0 | C202: 0 | D202: 0 | E202: 0 | F202: 0 | G202: 0
A203: 2000-07-14 | B203: 0 | C203: 0 | D203: 0 | E203: 0 | F203: 0 | G203: 0
A204: 2000-07-15 | B204: 0 | C204: 0 | D204: 0 | E204: 0 | F204: 0 | G204: 0
... 7747 more rows

Sheet EOS Storage
A3: Water Year | B3: Sites Release Potential (TAF) | C3: EOS Storage
A4: 1999 | B4: 75 | C4: 1389
A5: 2000 | B5: 124 | C5: 1339
A6: 2001 | B6: 493 | C6: 970
A7: 2002 | B7: 387 | C7: 912
A8: 2003 | B8: 167 | C8: 1133
A9: 2004 | B9: 209 | C9: 1258
A10: 2005 | B10: 151 | C10: 1315
A11: 2006 | B11: 75 | C11: 1389
A12: 2007 | B12: 416 | C12: 1048
A13: 2008 | B13: 601 | C13: 613
A14: 2009 | B14: 490 | C14: 190
A15: 2010 | B15: 256 | C15: 160
A16: 2011 | B16: 75 | C16: 720
A17: 2012 | B17: 290 | C17: 430
A18: 2013 | B18: 481 | C18: 60
A19: 2014 | B19: 4 | C19: 40
A20: 2015 | B20: 0 | C20: 40
A21: 2016 | B21: 230 | C21: 50
A22: 2017 | B22: 75 | C22: 960
A23: 2018 | B23: 245 | C23: 720
A24: 2019 | B24: 75 | C24: 1090
A25: 2020 | B25: 428 | C25: 740
A26: 2021 | B26: 384 | C26: 90
A27: 2022 | B27: 28 | C27: 140

Sheet Wilkins Analysis
J1: Diversion Capacity: | K1: 2200 | M1: 2000
J2: Travel Time: | K2: 3 | M2: 2
B3: Min | C3: =MIN(C10:C7953) -> 0 | D3: =MIN(D10:D7953) -> 0 | E3: 0 | F3: 0 | G3: 0 | H3: 0 | I3: 0 | J3: 0 | K3: 0 | L3: 0 | M3: 0 | N3: 0 | O3: 2890 | P3: =MIN(P10:P7953) -> 2890 | Q3: 2890 | R3: 0 | S3: 2890 | T3: 2890 | U3: 0 | V3: 2890
B4: Max | C4: =MAX(C10:C7953) -> 2200 | D4: =MAX(D10:D7953) -> 2200 | E4: 2000 | F4: 2000 | G4: 4200 | H4: 601 | I4: 4200 | J4: 573289.171 | K4: 2200 | L4: 2200 | M4: 2000 | N4: 2000 | O4: 31600 | P4: =MAX(P10:P7953) -> 60988.17 | Q4: 56788.17 | R4: 27942.48372 | S4: 28845.68628 | T4: 60988.17 | U4: 31875.63208 | V4: 29112.53792
B5: Avg | C5: =AVERAGE(C10:C7953) -> 362.150005 | D5: =AVERAGE(D10:D7953) -> 362.3324483 | E5: 260.0569609 | F5: 260.187972 | G5: 622.2069659 | H5: 258.6749748 | I5: 36.38386794 | J5: 487918.0728 | K5: 21.80181624 | L5: 21.81279952 | M5: 14.5820517 | N5: 14.58939783 | O5: 9257.484894 | P5: =AVERAGE(P10:P7953) -> 10183.08066 | Q5: 9561.842419 | R5: 664.4999847 | S5: 8897.342435 | T5: 10147.88683 | U5: 859.8104139 | V5: 9288.076419
A7: Date | B7: Water Year | C7: Historical WAA No FV | H7: Liminted Based on Storage | K7: Trailing Average for Attenuation | O7: Downstream Flows
C8: TCC Diversion | D8: 5-Day TCC | E8: GCID Diversion | F8: 5-Day GCID | G8: Combined Diversion | H8: Max. Annual Diversion | I8: Limited Combined Diversion | J8: Cumulative Diversion | K8: Limited TCC Diversion | L8: 5-Day TCC | M8: Limited GCID Diversion | N8: 5-Day GCID | O8: Wilkins Slough 11390500 | P8: Historical Tisdale Est. | Q8: Est. Sac River @ Tisdale Flow | R8: Est. Tisdale Spill | S8: Wilkins LESS Original WAA | T8: Est. Sac River @ Tisdale Flow | U8: Est. Tisdale Spill | V8: Wilkins LESS Limited WAA
C9: CFS | E9: CFS | G9: CFS | H9: TAF | I9: CFS | J9: AF | K9: CFS | L9: CFS | M9: CFS | N9: CFS | O9: CFS | P9: CFS | Q9: CFS | R9: CFS | S9: CFS | T9: CFS | U9: CFS | V9: CFS
A10: 2000-01-01 | B10: =IF(MONTH(A10)>9,YEAR(A10)+1,YEAR(A10)) -> 2000 | C10: =Historical!E8 -> 0 | E10: =Historical!F8 -> 0 | G10: =C10+E10 -> 0 | H10: =VLOOKUP(B10,'EOS Storage'!$A$4:$C$27,2) -> 124 | I10: =G10 -> 0 | J10: =G10*1.98347 -> 0 | K10: =IF(I10<C10,MIN($K$1,I10),C10) -> 0 | M10: =I10-K10 -> 0 | O10: 7020 | P10: =O10+Tisdale!B2 -> 7020
A11: 2000-01-02 | B11: =IF(MONTH(A11)>9,YEAR(A11)+1,YEAR(A11)) -> 2000 | C11: =Historical!E9 -> 0 | E11: =Historical!F9 -> 0 | G11: 0 | H11: =VLOOKUP(B11,'EOS Storage'!$A$4:$C$27,2) -> 124 | I11: =IF(B11=B10,IF(J10<H11*1000,MIN(G11,(H11*1000-J10)/1.98347),0),G11) -> 0 | J11: =J10+I11*1.98347 -> 0 | K11: 0 | M11: =I11-K11 -> 0 | O11: 7030 | P11: =O11+Tisdale!B3 -> 7030
A12: 2000-01-03 | B12: 2000 | C12: =Historical!E10 -> 0 | E12: =Historical!F10 -> 0 | G12: 0 | H12: =VLOOKUP(B12,'EOS Storage'!$A$4:$C$27,2) -> 124 | I12: 0 | J12: =J11+I12*1.98347 -> 0 | K12: 0 | M12: 0 | O12: 6940 | P12: =O12+Tisdale!B4 -> 6940
A13: 2000-01-04 | B13: 2000 | C13: =Historical!E11 -> 0 | E13: =Historical!F11 -> 0 | G13: 0 | H13: =VLOOKUP(B13,'EOS Storage'!$A$4:$C$27,2) -> 124 | I13: 0 | J13: 0 | K13: 0 | M13: 0 | O13: 6850 | P13: =O13+Tisdale!B5 -> 6850 | Q13: =P13-D10-F11 -> 6850 | R13: =intrp(Tisdale!$E$2:$F$14,Q13) -> 0 | S13: =Q13-R13 -> 6850 | T13: =P13-L10-N11 -> 6850 | U13: =intrp(Tisdale!$E$2:$F$14,T13) -> 0 | V13: =T13-U13 -> 6850
A14: 2000-01-05 | B14: 2000 | C14: =Historical!E12 -> 0 | D14: =AVERAGE(C10:C14) -> 0 | E14: =Historical!F12 -> 0 | F14: =AVERAGE(E10:E14) -> 0 | G14: 0 | H14: =VLOOKUP(B14,'EOS Storage'!$A$4:$C$27,2) -> 124 | I14: 0 | J14: 0 | K14: 0 | L14: =AVERAGE(K10:K14) -> 0 | M14: 0 | N14: =AVERAGE(M10:M14) -> 0 | O14: 6820 | P14: =O14+Tisdale!B6 -> 6820 | Q14: =P14-D11-F12 -> 6820 | R14: =intrp(Tisdale!$E$2:$F$14,Q14) -> 0 | S14: =Q14-R14 -> 6820 | T14: =P14-L11-N12 -> 6820 | U14: =intrp(Tisdale!$E$2:$F$14,T14) -> 0 | V14: =T14-U14 -> 6820
A15: 2000-01-06 | B15: 2000 | C15: =Historical!E13 -> 0 | D15: =AVERAGE(C11:C15) -> 0 | E15: =Historical!F13 -> 0 | F15: =AVERAGE(E11:E15) -> 0 | G15: 0 | H15: =VLOOKUP(B15,'EOS Storage'!$A$4:$C$27,2) -> 124 | I15: 0 | J15: 0 | K15: 0 | L15: =AVERAGE(K11:K15) -> 0 | M15: 0 | N15: =AVERAGE(M11:M15) -> 0 | O15: 6700 | P15: =O15+Tisdale!B7 -> 6700 | Q15: 6700 | R15: =intrp(Tisdale!$E$2:$F$14,Q15) -> 0 | S15: 6700 | T15: 6700 | U15: =intrp(Tisdale!$E$2:$F$14,T15) -> 0 | V15: 6700
A16: 2000-01-07 | B16: 2000 | C16: =Historical!E14 -> 0 | D16: 0 | E16: =Historical!F14 -> 0 | F16: 0 | G16: 0 | H16: =VLOOKUP(B16,'EOS Storage'!$A$4:$C$27,2) -> 124 | I16: 0 | J16: 0 | K16: 0 | L16: 0 | M16: 0 | N16: 0 | O16: 6580 | P16: =O16+Tisdale!B8 -> 6580 | Q16: 6580 | R16: =intrp(Tisdale!$E$2:$F$14,Q16) -> 0 | S16: 6580 | T16: 6580 | U16: =intrp(Tisdale!$E$2:$F$14,T16) -> 0 | V16: 6580
A17: 2000-01-08 | B17: 2000 | C17: =Historical!E15 -> 0 | D17: 0 | E17: =Historical!F15 -> 0 | F17: 0 | G17: 0 | H17: =VLOOKUP(B17,'EOS Storage'!$A$4:$C$27,2) -> 124 | I17: 0 | J17: 0 | K17: 0 | L17: 0 | M17: 0 | N17: 0 | O17: 6430 | P17: =O17+Tisdale!B9 -> 6430 | Q17: 6430 | R17: =intrp(Tisdale!$E$2:$F$14,Q17) -> 0 | S17: 6430 | T17: 6430 | U17: =intrp(Tisdale!$E$2:$F$14,T17) -> 0 | V17: 6430
A18: 2000-01-09 | B18: 2000 | C18: =Historical!E16 -> 0 | D18: 0 | E18: =Historical!F16 -> 0 | F18: 0 | G18: 0 | H18: =VLOOKUP(B18,'EOS Storage'!$A$4:$C$27,2) -> 124 | I18: 0 | J18: 0 | K18: 0 | L18: 0 | M18: 0 | N18: 0 | O18: 6290 | P18: =O18+Tisdale!B10 -> 6290 | Q18: 6290 | R18: =intrp(Tisdale!$E$2:$F$14,Q18) -> 0 | S18: 6290 | T18: 6290 | U18: =intrp(Tisdale!$E$2:$F$14,T18) -> 0 | V18: 6290
A19: 2000-01-10 | B19: 2000 | C19: =Historical!E17 -> 0 | D19: 0 | E19: =Historical!F17 -> 0 | F19: 0 | G19: 0 | H19: =VLOOKUP(B19,'EOS Storage'!$A$4:$C$27,2) -> 124 | I19: 0 | J19: 0 | K19: 0 | L19: 0 | M19: 0 | N19: 0 | O19: 6290 | P19: =O19+Tisdale!B11 -> 6290 | Q19: 6290 | R19: =intrp(Tisdale!$E$2:$F$14,Q19) -> 0 | S19: 6290 | T19: 6290 | U19: =intrp(Tisdale!$E$2:$F$14,T19) -> 0 | V19: 6290
A20: 2000-01-11 | B20: 2000 | C20: =Historical!E18 -> 0 | D20: 0 | E20: =Historical!F18 -> 0 | F20: 0 | G20: 0 | H20: =VLOOKUP(B20,'EOS Storage'!$A$4:$C$27,2) -> 124 | I20: 0 | J20: 0 | K20: 0 | L20: 0 | M20: 0 | N20: 0 | O20: 6350 | P20: =O20+Tisdale!B12 -> 6350 | Q20: 6350 | R20: =intrp(Tisdale!$E$2:$F$14,Q20) -> 0 | S20: 6350 | T20: 6350 | U20: =intrp(Tisdale!$E$2:$F$14,T20) -> 0 | V20: 6350
A21: 2000-01-12 | B21: 2000 | C21: =Historical!E19 -> 0 | D21: 0 | E21: =Historical!F19 -> 0 | F21: 0 | G21: 0 | H21: =VLOOKUP(B21,'EOS Storage'!$A$4:$C$27,2) -> 124 | I21: 0 | J21: 0 | K21: 0 | L21: 0 | M21: 0 | N21: 0 | O21: 6600 | P21: =O21+Tisdale!B13 -> 6600 | Q21: 6600 | R21: =intrp(Tisdale!$E$2:$F$14,Q21) -> 0 | S21: 6600 | T21: 6600 | U21: =intrp(Tisdale!$E$2:$F$14,T21) -> 0 | V21: 6600
A22: 2000-01-13 | B22: 2000 | C22: =Historical!E20 -> 0 | D22: 0 | E22: =Historical!F20 -> 0 | F22: 0 | G22: 0 | H22: =VLOOKUP(B22,'EOS Storage'!$A$4:$C$27,2) -> 124 | I22: 0 | J22: 0 | K22: 0 | L22: 0 | M22: 0 | N22: 0 | O22: 8000 | P22: =O22+Tisdale!B14 -> 8000 | Q22: 8000 | R22: =intrp(Tisdale!$E$2:$F$14,Q22) -> 0 | S22: 8000 | T22: 8000 | U22: =intrp(Tisdale!$E$2:$F$14,T22) -> 0 | V22: 8000
A23: 2000-01-14 | B23: 2000 | C23: =Historical!E21 -> 0 | D23: 0 | E23: =Historical!F21 -> 0 | F23: 0 | G23: 0 | H23: =VLOOKUP(B23,'EOS Storage'!$A$4:$C$27,2) -> 124 | I23: 0 | J23: 0 | K23: 0 | L23: 0 | M23: 0 | N23: 0 | O23: 8140 | P23: =O23+Tisdale!B15 -> 8140 | Q23: 8140 | R23: =intrp(Tisdale!$E$2:$F$14,Q23) -> 0 | S23: 8140 | T23: 8140 | U23: =intrp(Tisdale!$E$2:$F$14,T23) -> 0 | V23: 8140
A24: 2000-01-15 | B24: 2000 | C24: =Historical!E22 -> 0 | D24: 0 | E24: =Historical!F22 -> 0 | F24: 0 | G24: 0 | H24: =VLOOKUP(B24,'EOS Storage'!$A$4:$C$27,2) -> 124 | I24: 0 | J24: 0 | K24: 0 | L24: 0 | M24: 0 | N24: 0 | O24: 8000 | P24: =O24+Tisdale!B16 -> 8000 | Q24: 8000 | R24: =intrp(Tisdale!$E$2:$F$14,Q24) -> 0 | S24: 8000 | T24: 8000 | U24: =intrp(Tisdale!$E$2:$F$14,T24) -> 0 | V24: 8000
A25: 2000-01-16 | B25: 2000 | C25: =Historical!E23 -> 0 | D25: 0 | E25: =Historical!F23 -> 0 | F25: 0 | G25: 0 | H25: =VLOOKUP(B25,'EOS Storage'!$A$4:$C$27,2) -> 124 | I25: 0 | J25: 0 | K25: 0 | L25: 0 | M25: 0 | N25: 0 | O25: 10300 | P25: =O25+Tisdale!B17 -> 10300 | Q25: 10300 | R25: =intrp(Tisdale!$E$2:$F$14,Q25) -> 0 | S25: 10300 | T25: 10300 | U25: =intrp(Tisdale!$E$2:$F$14,T25) -> 0 | V25: 10300
A26: 2000-01-17 | B26: 2000 | C26: =Historical!E24 -> 0 | D26: 0 | E26: =Historical!F24 -> 0 | F26: 0 | G26: 0 | H26: =VLOOKUP(B26,'EOS Storage'!$A$4:$C$27,2) -> 124 | I26: 0 | J26: 0 | K26: 0 | L26: 0 | M26: 0 | N26: 0 | O26: 15000 | P26: =O26+Tisdale!B18 -> 29822.6 | Q26: 29822.6 | R26: =intrp(Tisdale!$E$2:$F$14,Q26) -> 4185.5 | S26: 25637.1 | T26: 29822.6 | U26: =intrp(Tisdale!$E$2:$F$14,T26) -> 4185.5 | V26: 25637.1
A27: 2000-01-18 | B27: 2000 | C27: =Historical!E25 -> 0 | D27: 0 | E27: =Historical!F25 -> 0 | F27: 0 | G27: 0 | H27: =VLOOKUP(B27,'EOS Storage'!$A$4:$C$27,2) -> 124 | I27: 0 | J27: 0 | K27: 0 | L27: 0 | M27: 0 | N27: 0 | O27: 14500 | P27: =O27+Tisdale!B19 -> 29068 | Q27: 29068 | R27: =intrp(Tisdale!$E$2:$F$14,Q27) -> 3734 | S27: 25334 | T27: 29068 | U27: =intrp(Tisdale!$E$2:$F$14,T27) -> 3734 | V27: 25334
A28: 2000-01-19 | B28: 2000 | C28: =Historical!E26 -> 0 | D28: 0 | E28: =Historical!F26 -> 0 | F28: 0 | G28: 0 | H28: =VLOOKUP(B28,'EOS Storage'!$A$4:$C$27,2) -> 124 | I28: 0 | J28: 0 | K28: 0 | L28: 0 | M28: 0 | N28: 0 | O28: 12400 | P28: =O28+Tisdale!B20 -> 12400 | Q28: 12400 | R28: =intrp(Tisdale!$E$2:$F$14,Q28) -> 0 | S28: 12400 | T28: 12400 | U28: =intrp(Tisdale!$E$2:$F$14,T28) -> 0 | V28: 12400
A29: 2000-01-20 | B29: 2000 | C29: =Historical!E27 -> 0 | D29: 0 | E29: =Historical!F27 -> 0 | F29: 0 | G29: 0 | H29: =VLOOKUP(B29,'EOS Storage'!$A$4:$C$27,2) -> 124 | I29: 0 | J29: 0 | K29: 0 | L29: 0 | M29: 0 | N29: 0 | O29: 13400 | P29: =O29+Tisdale!B21 -> 13400 | Q29: 13400 | R29: =intrp(Tisdale!$E$2:$F$14,Q29) -> 0 | S29: 13400 | T29: 13400 | U29: =intrp(Tisdale!$E$2:$F$14,T29) -> 0 | V29: 13400
A30: 2000-01-21 | B30: 2000 | C30: =Historical!E28 -> 0 | D30: 0 | E30: =Historical!F28 -> 0 | F30: 0 | G30: 0 | H30: =VLOOKUP(B30,'EOS Storage'!$A$4:$C$27,2) -> 124 | I30: 0 | J30: 0 | K30: 0 | L30: 0 | M30: 0 | N30: 0 | O30: 19100 | P30: =O30+Tisdale!B22 -> 19100 | Q30: 19100 | R30: =intrp(Tisdale!$E$2:$F$14,Q30) -> 0 | S30: 19100 | T30: 19100 | U30: =intrp(Tisdale!$E$2:$F$14,T30) -> 0 | V30: 19100
A31: 2000-01-22 | B31: 2000 | C31: =Historical!E29 -> 0 | D31: 0 | E31: =Historical!F29 -> 0 | F31: 0 | G31: 0 | H31: =VLOOKUP(B31,'EOS Storage'!$A$4:$C$27,2) -> 124 | I31: 0 | J31: 0 | K31: 0 | L31: 0 | M31: 0 | N31: 0 | O31: 17500 | P31: =O31+Tisdale!B23 -> 17500 | Q31: 17500 | R31: =intrp(Tisdale!$E$2:$F$14,Q31) -> 0 | S31: 17500 | T31: 17500 | U31: =intrp(Tisdale!$E$2:$F$14,T31) -> 0 | V31: 17500
A32: 2000-01-23 | B32: 2000 | C32: =Historical!E30 -> 0 | D32: 0 | E32: =Historical!F30 -> 0 | F32: 0 | G32: 0 | H32: =VLOOKUP(B32,'EOS Storage'!$A$4:$C$27,2) -> 124 | I32: 0 | J32: 0 | K32: 0 | L32: 0 | M32: 0 | N32: 0 | O32: 14500 | P32: =O32+Tisdale!B24 -> 14500 | Q32: 14500 | R32: =intrp(Tisdale!$E$2:$F$14,Q32) -> 0 | S32: 14500 | T32: 14500 | U32: =intrp(Tisdale!$E$2:$F$14,T32) -> 0 | V32: 14500
A33: 2000-01-24 | B33: 2000 | C33: =Historical!E31 -> 0 | D33: 0 | E33: =Historical!F31 -> 0 | F33: 0 | G33: 0 | H33: =VLOOKUP(B33,'EOS Storage'!$A$4:$C$27,2) -> 124 | I33: 0 | J33: 0 | K33: 0 | L33: 0 | M33: 0 | N33: 0 | O33: 14700 | P33: =O33+Tisdale!B25 -> 14700 | Q33: 14700 | R33: =intrp(Tisdale!$E$2:$F$14,Q33) -> 0 | S33: 14700 | T33: 14700 | U33: =intrp(Tisdale!$E$2:$F$14,T33) -> 0 | V33: 14700
A34: 2000-01-25 | B34: 2000 | C34: =Historical!E32 -> 0 | D34: 0 | E34: =Historical!F32 -> 0 | F34: 0 | G34: 0 | H34: =VLOOKUP(B34,'EOS Storage'!$A$4:$C$27,2) -> 124 | I34: 0 | J34: 0 | K34: 0 | L34: 0 | M34: 0 | N34: 0 | O34: 20800 | P34: =O34+Tisdale!B26 -> 21422.4 | Q34: 21422.4 | R34: =intrp(Tisdale!$E$2:$F$14,Q34) -> 0 | S34: 21422.4 | T34: 21422.4 | U34: =intrp(Tisdale!$E$2:$F$14,T34) -> 0 | V34: 21422.4
A35: 2000-01-26 | B35: 2000 | C35: =Historical!E33 -> 2200 | D35: 440 | E35: =Historical!F33 -> 2000 | F35: 400 | G35: 4200 | H35: =VLOOKUP(B35,'EOS Storage'!$A$4:$C$27,2) -> 124 | I35: 4200 | J35: 8330.574 | K35: 2200 | L35: 440 | M35: 2000 | N35: 400 | O35: 23600 | P35: =O35+Tisdale!B27 -> 24956.41 | Q35: 24956.41 | R35: =intrp(Tisdale!$E$2:$F$14,Q35) -> 1078.822222 | S35: 23877.58778 | T35: 24956.41 | U35: =intrp(Tisdale!$E$2:$F$14,T35) -> 1078.822222 | V35: 23877.58778
A36: 2000-01-27 | B36: 2000 | C36: =Historical!E34 -> 2200 | D36: 880 | E36: =Historical!F34 -> 2000 | F36: 800 | G36: 4200 | H36: =VLOOKUP(B36,'EOS Storage'!$A$4:$C$27,2) -> 124 | I36: 4200 | J36: 16661.148 | K36: 2200 | L36: 880 | M36: 2000 | N36: 800 | O36: 23300 | P36: =O36+Tisdale!B28 -> 24120.66 | Q36: 24120.66 | R36: =intrp(Tisdale!$E$2:$F$14,Q36) -> 459.7481481 | S36: 23660.91185 | T36: 24120.66 | U36: =intrp(Tisdale!$E$2:$F$14,T36) -> 459.7481481 | V36: 23660.91185
A37: 2000-01-28 | B37: 2000 | C37: =Historical!E35 -> 2200 | D37: 1320 | E37: =Historical!F35 -> 2000 | F37: 1200 | G37: 4200 | H37: =VLOOKUP(B37,'EOS Storage'!$A$4:$C$27,2) -> 124 | I37: 4200 | J37: 24991.722 | K37: 2200 | L37: 1320 | M37: 2000 | N37: 1200 | O37: 22100 | P37: =O37+Tisdale!B29 -> 22237.77 | Q37: 21837.77 | R37: =intrp(Tisdale!$E$2:$F$14,Q37) -> 0 | S37: 21837.77 | T37: 21837.77 | U37: =intrp(Tisdale!$E$2:$F$14,T37) -> 0 | V37: 21837.77
A38: 2000-01-29 | B38: 2000 | C38: =Historical!E36 -> 2200 | D38: 1760 | E38: =Historical!F36 -> 2000 | F38: 1600 | G38: 4200 | H38: =VLOOKUP(B38,'EOS Storage'!$A$4:$C$27,2) -> 124 | I38: 4200 | J38: 33322.296 | K38: 2200 | L38: 1760 | M38: 2000 | N38: 1600 | O38: 20300 | P38: =O38+Tisdale!B30 -> 20300 | Q38: 19060 | R38: =intrp(Tisdale!$E$2:$F$14,Q38) -> 0 | S38: 19060 | T38: 19060 | U38: =intrp(Tisdale!$E$2:$F$14,T38) -> 0 | V38: 19060
A39: 2000-01-30 | B39: 2000 | C39: =Historical!E37 -> 2200 | D39: 2200 | E39: =Historical!F37 -> 2000 | F39: 2000 | G39: 4200 | H39: =VLOOKUP(B39,'EOS Storage'!$A$4:$C$27,2) -> 124 | I39: 4200 | J39: 41652.87 | K39: 2200 | L39: 2200 | M39: 2000 | N39: 2000 | O39: 20400 | P39: =O39+Tisdale!B31 -> 20400 | Q39: 18320 | R39: =intrp(Tisdale!$E$2:$F$14,Q39) -> 0 | S39: 18320 | T39: 18320 | U39: =intrp(Tisdale!$E$2:$F$14,T39) -> 0 | V39: 18320
A40: 2000-01-31 | B40: 2000 | C40: =Historical!E38 -> 2200 | D40: 2200 | E40: =Historical!F38 -> 2000 | F40: 2000 | G40: 4200 | H40: =VLOOKUP(B40,'EOS Storage'!$A$4:$C$27,2) -> 124 | I40: 4200 | J40: 49983.444 | K40: 2200 | L40: 2200 | M40: 2000 | N40: 2000 | O40: 23300 | P40: =O40+Tisdale!B32 -> 25305.42 | Q40: 22385.42 | R40: =intrp(Tisdale!$E$2:$F$14,Q40) -> 0 | S40: 22385.42 | T40: 22385.42 | U40: =intrp(Tisdale!$E$2:$F$14,T40) -> 0 | V40: 22385.42
A41: 2000-02-01 | B41: 2000 | C41: =Historical!E39 -> 2200 | D41: 2200 | E41: =Historical!F39 -> 2000 | F41: 2000 | G41: 4200 | H41: =VLOOKUP(B41,'EOS Storage'!$A$4:$C$27,2) -> 124 | I41: 4200 | J41: 58314.018 | K41: 2200 | L41: 2200 | M41: 2000 | N41: 2000 | O41: 25300 | P41: =O41+Tisdale!B33 -> 31729.82 | Q41: 27969.82 | R41: =intrp(Tisdale!$E$2:$F$14,Q41) -> 3184.91 | S41: 24784.91 | T41: 27969.82 | U41: =intrp(Tisdale!$E$2:$F$14,T41) -> 3184.91 | V41: 24784.91
A42: 2000-02-02 | B42: 2000 | C42: =Historical!E40 -> 2200 | D42: 2200 | E42: =Historical!F40 -> 2000 | F42: 2000 | G42: 4200 | H42: =VLOOKUP(B42,'EOS Storage'!$A$4:$C$27,2) -> 124 | I42: 4200 | J42: 66644.592 | K42: 2200 | L42: 2200 | M42: 2000 | N42: 2000 | O42: 24600 | P42: =O42+Tisdale!B34 -> 28354.31 | Q42: 24154.31 | R42: =intrp(Tisdale!$E$2:$F$14,Q42) -> 484.6740741 | S42: 23669.63593 | T42: 24154.31 | U42: =intrp(Tisdale!$E$2:$F$14,T42) -> 484.6740741 | V42: 23669.63593
A43: 2000-02-03 | B43: 2000 | C43: =Historical!E41 -> 2200 | D43: 2200 | E43: =Historical!F41 -> 2000 | F43: 2000 | G43: 4200 | H43: =VLOOKUP(B43,'EOS Storage'!$A$4:$C$27,2) -> 124 | I43: 4200 | J43: 74975.166 | K43: 2200 | L43: 2200 | M43: 2000 | N43: 2000 | O43: 23600 | P43: =O43+Tisdale!B35 -> 24988.27 | Q43: 20788.27 | R43: =intrp(Tisdale!$E$2:$F$14,Q43) -> 0 | S43: 20788.27 | T43: 20788.27 | U43: =intrp(Tisdale!$E$2:$F$14,T43) -> 0 | V43: 20788.27
A44: 2000-02-04 | B44: 2000 | C44: =Historical!E42 -> 2200 | D44: 2200 | E44: =Historical!F42 -> 2000 | F44: 2000 | G44: 4200 | H44: =VLOOKUP(B44,'EOS Storage'!$A$4:$C$27,2) -> 124 | I44: 4200 | J44: 83305.74 | K44: 2200 | L44: 2200 | M44: 2000 | N44: 2000 | O44: 22400 | P44: =O44+Tisdale!B36 -> 22532.97 | Q44: 18332.97 | R44: =intrp(Tisdale!$E$2:$F$14,Q44) -> 0 | S44: 18332.97 | T44: 18332.97 | U44: =intrp(Tisdale!$E$2:$F$14,T44) -> 0 | V44: 18332.97
A45: 2000-02-05 | B45: 2000 | C45: =Historical!E43 -> 2200 | D45: 2200 | E45: =Historical!F43 -> 2000 | F45: 2000 | G45: 4200 | H45: =VLOOKUP(B45,'EOS Storage'!$A$4:$C$27,2) -> 124 | I45: 4200 | J45: 91636.314 | K45: 2200 | L45: 2200 | M45: 2000 | N45: 2000 | O45: 22700 | P45: =O45+Tisdale!B37 -> 22921.67 | Q45: 18721.67 | R45: =intrp(Tisdale!$E$2:$F$14,Q45) -> 0 | S45: 18721.67 | T45: 18721.67 | U45: =intrp(Tisdale!$E$2:$F$14,T45) -> 0 | V45: 18721.67
A46: 2000-02-06 | B46: 2000 | C46: =Historical!E44 -> 2200 | D46: 2200 | E46: =Historical!F44 -> 2000 | F46: 2000 | G46: 4200 | H46: =VLOOKUP(B46,'EOS Storage'!$A$4:$C$27,2) -> 124 | I46: 4200 | J46: 99966.888 | K46: 2200 | L46: 2200 | M46: 2000 | N46: 2000 | O46: 22700 | P46: =O46+Tisdale!B38 -> 22970.14 | Q46: 18770.14 | R46: =intrp(Tisdale!$E$2:$F$14,Q46) -> 0 | S46: 18770.14 | T46: 18770.14 | U46: =intrp(Tisdale!$E$2:$F$14,T46) -> 0 | V46: 18770.14
A47: 2000-02-07 | B47: 2000 | C47: =Historical!E45 -> 2200 | D47: 2200 | E47: =Historical!F45 -> 2000 | F47: 2000 | G47: 4200 | H47: =VLOOKUP(B47,'EOS Storage'!$A$4:$C$27,2) -> 124 | I47: 4200 | J47: 108297.462 | K47: 2200 | L47: 2200 | M47: 2000 | N47: 2000 | O47: 23600 | P47: =O47+Tisdale!B39 -> 24843.89 | Q47: 20643.89 | R47: =intrp(Tisdale!$E$2:$F$14,Q47) -> 0 | S47: 20643.89 | T47: 20643.89 | U47: =intrp(Tisdale!$E$2:$F$14,T47) -> 0 | V47: 20643.89
A48: 2000-02-08 | B48: 2000 | C48: =Historical!E46 -> 2200 | D48: 2200 | E48: =Historical!F46 -> 2000 | F48: 2000 | G48: 4200 | H48: =VLOOKUP(B48,'EOS Storage'!$A$4:$C$27,2) -> 124 | I48: 4200 | J48: 116628.036 | K48: 2200 | L48: 2200 | M48: 2000 | N48: 2000 | O48: 22000 | P48: =O48+Tisdale!B40 -> 22224.16 | Q48: 18024.16 | R48: =intrp(Tisdale!$E$2:$F$14,Q48) -> 0 | S48: 18024.16 | T48: 18024.16 | U48: =intrp(Tisdale!$E$2:$F$14,T48) -> 0 | V48: 18024.16
A49: 2000-02-09 | B49: 2000 | C49: =Historical!E47 -> 2200 | D49: 2200 | E49: =Historical!F47 -> 2000 | F49: 2000 | G49: 4200 | H49: =VLOOKUP(B49,'EOS Storage'!$A$4:$C$27,2) -> 124 | I49: 3716.70053 | J49: 124000 | K49: 2200 | L49: 2200 | M49: 1516.70053 | N49: 1903.340106 | O49: 19700 | P49: =O49+Tisdale!B41 -> 19700 | Q49: 15500 | R49: =intrp(Tisdale!$E$2:$F$14,Q49) -> 0 | S49: 15500 | T49: 15500 | U49: =intrp(Tisdale!$E$2:$F$14,T49) -> 0 | V49: 15500
A50: 2000-02-10 | B50: 2000 | C50: =Historical!E48 -> 2200 | D50: 2200 | E50: =Historical!F48 -> 2000 | F50: 2000 | G50: 4200 | H50: =VLOOKUP(B50,'EOS Storage'!$A$4:$C$27,2) -> 124 | I50: 0 | J50: 124000 | K50: 0 | L50: 1760 | M50: 0 | N50: 1503.340106 | O50: 18600 | P50: =O50+Tisdale!B42 -> 18600 | Q50: 14400 | R50: =intrp(Tisdale!$E$2:$F$14,Q50) -> 0 | S50: 14400 | T50: 14400 | U50: =intrp(Tisdale!$E$2:$F$14,T50) -> 0 | V50: 14400
A51: 2000-02-11 | B51: 2000 | C51: =Historical!E49 -> 2200 | D51: 2200 | E51: =Historical!F49 -> 2000 | F51: 2000 | G51: 4200 | H51: =VLOOKUP(B51,'EOS Storage'!$A$4:$C$27,2) -> 124 | I51: 0 | J51: 124000 | K51: 0 | L51: 1320 | M51: 0 | N51: 1103.340106 | O51: 21300 | P51: =O51+Tisdale!B43 -> 22327.12 | Q51: 18127.12 | R51: =intrp(Tisdale!$E$2:$F$14,Q51) -> 0 | S51: 18127.12 | T51: 18223.77989 | U51: =intrp(Tisdale!$E$2:$F$14,T51) -> 0 | V51: 18223.77989
A52: 2000-02-12 | B52: 2000 | C52: =Historical!E50 -> 2200 | D52: 2200 | E52: =Historical!F50 -> 2000 | F52: 2000 | G52: 4200 | H52: =VLOOKUP(B52,'EOS Storage'!$A$4:$C$27,2) -> 124 | I52: 0 | J52: 124000 | K52: 0 | L52: 880 | M52: 0 | N52: 703.340106 | O52: 25400 | P52: =O52+Tisdale!B44 -> 32347.54 | Q52: 28147.54 | R52: =intrp(Tisdale!$E$2:$F$14,Q52) -> 3273.77 | S52: 24873.77 | T52: 28644.19989 | U52: =intrp(Tisdale!$E$2:$F$14,T52) -> 3522.099947 | V52: 25122.09995
A53: 2000-02-13 | B53: 2000 | C53: =Historical!E51 -> 2200 | D53: 2200 | E53: =Historical!F51 -> 2000 | F53: 2000 | G53: 4200 | H53: =VLOOKUP(B53,'EOS Storage'!$A$4:$C$27,2) -> 124 | I53: 0 | J53: 124000 | K53: 0 | L53: 440 | M53: 0 | N53: 303.340106 | O53: 27200 | P53: =O53+Tisdale!B45 -> 41192.46 | Q53: 36992.46 | R53: =intrp(Tisdale!$E$2:$F$14,Q53) -> 9993.968 | S53: 26998.492 | T53: 38329.11989 | U53: =intrp(Tisdale!$E$2:$F$14,T53) -> 11208.29081 | V53: 27120.82908
A54: 2000-02-14 | B54: 2000 | C54: =Historical!E52 -> 2200 | D54: 2200 | E54: =Historical!F52 -> 2000 | F54: 2000 | G54: 4200 | H54: =VLOOKUP(B54,'EOS Storage'!$A$4:$C$27,2) -> 124 | I54: 0 | J54: 124000 | K54: 0 | L54: 0 | M54: 0 | N54: 0 | O54: 27900 | P54: =O54+Tisdale!B46 -> 42621.86 | Q54: 38421.86 | R54: =intrp(Tisdale!$E$2:$F$14,Q54) -> 11292.6 | S54: 27129.26 | T54: 40598.51989 | U54: =intrp(Tisdale!$E$2:$F$14,T54) -> 13271.38172 | V54: 27327.13817
A55: 2000-02-15 | B55: 2000 | C55: =Historical!E53 -> 2200 | D55: 2200 | E55: =Historical!F53 -> 2000 | F55: 2000 | G55: 4200 | H55: =VLOOKUP(B55,'EOS Storage'!$A$4:$C$27,2) -> 124 | I55: 0 | J55: 124000 | K55: 0 | L55: 0 | M55: 0 | N55: 0 | O55: 29000 | P55: =O55+Tisdale!B47 -> 45028.54 | Q55: 40828.54 | R55: =intrp(Tisdale!$E$2:$F$14,Q55) -> 13480.49091 | S55: 27348.04909 | T55: 43845.19989 | U55: =intrp(Tisdale!$E$2:$F$14,T55) -> 16191.94927 | V55: 27653.25062
A56: 2000-02-16 | B56: 2000 | C56: =Historical!E54 -> 2200 | D56: 2200 | E56: =Historical!F54 -> 2000 | F56: 2000 | G56: 4200 | H56: =VLOOKUP(B56,'EOS Storage'!$A$4:$C$27,2) -> 124 | I56: 0 | J56: 124000 | K56: 0 | L56: 0 | M56: 0 | N56: 0 | O56: 29200 | P56: =O56+Tisdale!B48 -> 45442.71 | Q56: 41242.71 | R56: =intrp(Tisdale!$E$2:$F$14,Q56) -> 13857.00909 | S56: 27385.70091 | T56: 45002.71 | U56: =intrp(Tisdale!$E$2:$F$14,T56) -> 17217.59114 | V56: 27785.11886
A57: 2000-02-17 | B57: 2000 | C57: =Historical!E55 -> 2200 | D57: 2200 | E57: =Historical!F55 -> 2000 | F57: 2000 | G57: 4200 | H57: =VLOOKUP(B57,'EOS Storage'!$A$4:$C$27,2) -> 124 | I57: 0 | J57: 124000 | K57: 0 | L57: 0 | M57: 0 | N57: 0 | O57: 28700 | P57: =O57+Tisdale!B49 -> 44380.26 | Q57: 40180.26 | R57: =intrp(Tisdale!$E$2:$F$14,Q57) -> 12891.14545 | S57: 27289.11455 | T57: 44380.26 | U57: =intrp(Tisdale!$E$2:$F$14,T57) -> 16666.05316 | V57: 27714.20684
A58: 2000-02-18 | B58: 2000 | C58: =Historical!E56 -> 2200 | D58: 2200 | E58: =Historical!F56 -> 2000 | F58: 2000 | G58: 4200 | H58: =VLOOKUP(B58,'EOS Storage'!$A$4:$C$27,2) -> 124 | I58: 0 | J58: 124000 | K58: 0 | L58: 0 | M58: 0 | N58: 0 | O58: 28300 | P58: =O58+Tisdale!B50 -> 43519.43 | Q58: 39319.43 | R58: =intrp(Tisdale!$E$2:$F$14,Q58) -> 12108.57273 | S58: 27210.85727 | T58: 43519.43 | U58: =intrp(Tisdale!$E$2:$F$14,T58) -> 15903.29241 | V58: 27616.13759
A59: 2000-02-19 | B59: 2000 | C59: =Historical!E57 -> 2200 | D59: 2200 | E59: =Historical!F57 -> 2000 | F59: 2000 | G59: 4200 | H59: =VLOOKUP(B59,'EOS Storage'!$A$4:$C$27,2) -> 124 | I59: 0 | J59: 124000 | K59: 0 | L59: 0 | M59: 0 | N59: 0 | O59: 28000 | P59: =O59+Tisdale!B51 -> 42823.16 | Q59: 38623.16 | R59: =intrp(Tisdale!$E$2:$F$14,Q59) -> 11475.6 | S59: 27147.56 | T59: 42823.16 | U59: =intrp(Tisdale!$E$2:$F$14,T59) -> 15286.3443 | V59: 27536.8157
A60: 2000-02-20 | B60: 2000 | C60: =Historical!E58 -> 2200 | D60: 2200 | E60: =Historical!F58 -> 2000 | F60: 2000 | G60: 4200 | H60: =VLOOKUP(B60,'EOS Storage'!$A$4:$C$27,2) -> 124 | I60: 0 | J60: 124000 | K60: 0 | L60: 0 | M60: 0 | N60: 0 | O60: 27700 | P60: =O60+Tisdale!B52 -> 42231.4 | Q60: 38031.4 | R60: =intrp(Tisdale!$E$2:$F$14,Q60) -> 10937.63636 | S60: 27093.76364 | T60: 42231.4 | U60: =intrp(Tisdale!$E$2:$F$14,T60) -> 14755.81818 | V60: 27475.58182
A61: 2000-02-21 | B61: 2000 | C61: =Historical!E59 -> 2200 | D61: 2200 | E61: =Historical!F59 -> 2000 | F61: 2000 | G61: 4200 | H61: =VLOOKUP(B61,'EOS Storage'!$A$4:$C$27,2) -> 124 | I61: 0 | J61: 124000 | K61: 0 | L61: 0 | M61: 0 | N61: 0 | O61: 27500 | P61: =O61+Tisdale!B53 -> 41785.76 | Q61: 37585.76 | R61: =intrp(Tisdale!$E$2:$F$14,Q61) -> 10532.50909 | S61: 27053.25091 | T61: 41785.76 | U61: =intrp(Tisdale!$E$2:$F$14,T61) -> 14350.69091 | V61: 27435.06909
A62: 2000-02-22 | B62: 2000 | C62: =Historical!E60 -> 2200 | D62: 2200 | E62: =Historical!F60 -> 2000 | F62: 2000 | G62: 4200 | H62: =VLOOKUP(B62,'EOS Storage'!$A$4:$C$27,2) -> 124 | I62: 0 | J62: 124000 | K62: 0 | L62: 0 | M62: 0 | N62: 0 | O62: 27600 | P62: =O62+Tisdale!B54 -> 41962.72 | Q62: 37762.72 | R62: =intrp(Tisdale!$E$2:$F$14,Q62) -> 10693.38182 | S62: 27069.33818 | T62: 41962.72 | U62: =intrp(Tisdale!$E$2:$F$14,T62) -> 14511.56364 | V62: 27451.15636
A63: 2000-02-23 | B63: 2000 | C63: =Historical!E61 -> 2200 | D63: 2200 | E63: =Historical!F61 -> 2000 | F63: 2000 | G63: 4200 | H63: =VLOOKUP(B63,'EOS Storage'!$A$4:$C$27,2) -> 124 | I63: 0 | J63: 124000 | K63: 0 | L63: 0 | M63: 0 | N63: 0 | O63: 27800 | P63: =O63+Tisdale!B55 -> 42485.29 | Q63: 38285.29 | R63: =intrp(Tisdale!$E$2:$F$14,Q63) -> 11168.44545 | S63: 27116.84455 | T63: 42485.29 | U63: =intrp(Tisdale!$E$2:$F$14,T63) -> 14986.62727 | V63: 27498.66273
A64: 2000-02-24 | B64: 2000 | C64: =Historical!E62 -> 2200 | D64: 2200 | E64: =Historical!F62 -> 2000 | F64: 2000 | G64: 4200 | H64: =VLOOKUP(B64,'EOS Storage'!$A$4:$C$27,2) -> 124 | I64: 0 | J64: 124000 | K64: 0 | L64: 0 | M64: 0 | N64: 0 | O64: 28700 | P64: =O64+Tisdale!B56 -> 44280.16 | Q64: 40080.16 | R64: =intrp(Tisdale!$E$2:$F$14,Q64) -> 12800.14545 | S64: 27280.01455 | T64: 44280.16 | U64: =intrp(Tisdale!$E$2:$F$14,T64) -> 16577.35696 | V64: 27702.80304
A65: 2000-02-25 | B65: 2000 | C65: =Historical!E63 -> 2200 | D65: 2200 | E65: =Historical!F63 -> 2000 | F65: 2000 | G65: 4200 | H65: =VLOOKUP(B65,'EOS Storage'!$A$4:$C$27,2) -> 124 | I65: 0 | J65: 124000 | K65: 0 | L65: 0 | M65: 0 | N65: 0 | O65: 28700 | P65: =O65+Tisdale!B57 -> 44304.85 | Q65: 40104.85 | R65: =intrp(Tisdale!$E$2:$F$14,Q65) -> 12822.59091 | S65: 27282.25909 | T65: 44304.85 | U65: =intrp(Tisdale!$E$2:$F$14,T65) -> 16599.23418 | V65: 27705.61582
A66: 2000-02-26 | B66: 2000 | C66: =Historical!E64 -> 2200 | D66: 2200 | E66: =Historical!F64 -> 2000 | F66: 2000 | G66: 4200 | H66: =VLOOKUP(B66,'EOS Storage'!$A$4:$C$27,2) -> 124 | I66: 0 | J66: 124000 | K66: 0 | L66: 0 | M66: 0 | N66: 0 | O66: 28200 | P66: =O66+Tisdale!B58 -> 43272.61 | Q66: 39072.61 | R66: =intrp(Tisdale!$E$2:$F$14,Q66) -> 11884.19091 | S66: 27188.41909 | T66: 43272.61 | U66: =intrp(Tisdale!$E$2:$F$14,T66) -> 15684.59114 | V66: 27588.01886
A67: 2000-02-27 | B67: 2000 | C67: =Historical!E65 -> 2200 | D67: 2200 | E67: =Historical!F65 -> 2000 | F67: 2000 | G67: 4200 | H67: =VLOOKUP(B67,'EOS Storage'!$A$4:$C$27,2) -> 124 | I67: 0 | J67: 124000 | K67: 0 | L67: 0 | M67: 0 | N67: 0 | O67: 28200 | P67: =O67+Tisdale!B59 -> 43275.98 | Q67: 39075.98 | R67: =intrp(Tisdale!$E$2:$F$14,Q67) -> 11887.25455 | S67: 27188.72545 | T67: 43275.98 | U67: =intrp(Tisdale!$E$2:$F$14,T67) -> 15687.57722 | V67: 27588.40278
A68: 2000-02-28 | B68: 2000 | C68: =Historical!E66 -> 2200 | D68: 2200 | E68: =Historical!F66 -> 2000 | F68: 2000 | G68: 4200 | H68: =VLOOKUP(B68,'EOS Storage'!$A$4:$C$27,2) -> 124 | I68: 0 | J68: 124000 | K68: 0 | L68: 0 | M68: 0 | N68: 0 | O68: 28800 | P68: =O68+Tisdale!B60 -> 44521.87 | Q68: 40321.87 | R68: =intrp(Tisdale!$E$2:$F$14,Q68) -> 13019.88182 | S68: 27301.98818 | T68: 44521.87 | U68: =intrp(Tisdale!$E$2:$F$14,T68) -> 16791.53038 | V68: 27730.33962
A69: 2000-02-29 | B69: 2000 | C69: =Historical!E67 -> 2200 | D69: 2200 | E69: =Historical!F67 -> 2000 | F69: 2000 | G69: 4200 | H69: =VLOOKUP(B69,'EOS Storage'!$A$4:$C$27,2) -> 124 | I69: 0 | J69: 124000 | K69: 0 | L69: 0 | M69: 0 | N69: 0 | O69: 29000 | P69: =O69+Tisdale!B61 -> 44904.65 | Q69: 40704.65 | R69: =intrp(Tisdale!$E$2:$F$14,Q69) -> 13367.86364 | S69: 27336.78636 | T69: 44904.65 | U69: =intrp(Tisdale!$E$2:$F$14,T69) -> 17130.70253 | V69: 27773.94747
A70: 2000-03-01 | B70: 2000 | C70: =Historical!E68 -> 2200 | D70: 2200 | E70: =Historical!F68 -> 2000 | F70: 2000 | G70: 4200 | H70: =VLOOKUP(B70,'EOS Storage'!$A$4:$C$27,2) -> 124 | I70: 0 | J70: 124000 | K70: 0 | L70: 0 | M70: 0 | N70: 0 | O70: 28800 | P70: =O70+Tisdale!B62 -> 44524.32 | Q70: 40324.32 | R70: =intrp(Tisdale!$E$2:$F$14,Q70) -> 13022.10909 | S70: 27302.21091 | T70: 44524.32 | U70: =intrp(Tisdale!$E$2:$F$14,T70) -> 16793.70127 | V70: 27730.61873
A71: 2000-03-02 | B71: 2000 | C71: =Historical!E69 -> 2200 | D71: 2200 | E71: =Historical!F69 -> 2000 | F71: 2000 | G71: 4200 | H71: =VLOOKUP(B71,'EOS Storage'!$A$4:$C$27,2) -> 124 | I71: 0 | J71: 124000 | K71: 0 | L71: 0 | M71: 0 | N71: 0 | O71: 28800 | P71: =O71+Tisdale!B63 -> 44525.3 | Q71: 40325.3 | R71: =intrp(Tisdale!$E$2:$F$14,Q71) -> 13023 | S71: 27302.3 | T71: 44525.3 | U71: =intrp(Tisdale!$E$2:$F$14,T71) -> 16794.56962 | V71: 27730.73038
A72: 2000-03-03 | B72: 2000 | C72: =Historical!E70 -> 2200 | D72: 2200 | E72: =Historical!F70 -> 2000 | F72: 2000 | G72: 4200 | H72: =VLOOKUP(B72,'EOS Storage'!$A$4:$C$27,2) -> 124 | I72: 0 | J72: 124000 | K72: 0 | L72: 0 | M72: 0 | N72: 0 | O72: 28700 | P72: =O72+Tisdale!B64 -> 44327.94 | Q72: 40127.94 | R72: =intrp(Tisdale!$E$2:$F$14,Q72) -> 12843.58182 | S72: 27284.35818 | T72: 44327.94 | U72: =intrp(Tisdale!$E$2:$F$14,T72) -> 16619.69367 | V72: 27708.24633
A73: 2000-03-04 | B73: 2000 | C73: =Historical!E71 -> 2200 | D73: 2200 | E73: =Historical!F71 -> 2000 | F73: 2000 | G73: 4200 | H73: =VLOOKUP(B73,'EOS Storage'!$A$4:$C$27,2) -> 124 | I73: 0 | J73: 124000 | K73: 0 | L73: 0 | M73: 0 | N73: 0 | O73: 28500 | P73: =O73+Tisdale!B65 -> 44000.8 | Q73: 39800.8 | R73: =intrp(Tisdale!$E$2:$F$14,Q73) -> 12546.18182 | S73: 27254.61818 | T73: 44000.8 | U73: =intrp(Tisdale!$E$2:$F$14,T73) -> 16329.82278 | V73: 27670.97722
A74: 2000-03-05 | B74: 2000 | C74: =Historical!E72 -> 2200 | D74: 2200 | E74: =Historical!F72 -> 2000 | F74: 2000 | G74: =C74+E74 -> 4200 | H74: =VLOOKUP(B74,'EOS Storage'!$A$4:$C$27,2) -> 124 | I74: 0 | J74: 124000 | K74: =IF(I74<C74,MIN($K$1,I74),C74) -> 0 | L74: 0 | M74: 0 | N74: 0 | O74: 28500 | P74: =O74+Tisdale!B66 -> 43917.62 | Q74: 39717.62 | R74: =intrp(Tisdale!$E$2:$F$14,Q74) -> 12470.56364 | S74: 27247.05636 | T74: 43917.62 | U74: =intrp(Tisdale!$E$2:$F$14,T74) -> 16256.11899 | V74: 27661.50101
A75: 2000-03-06 | B75: =IF(MONTH(A75)>9,YEAR(A75)+1,YEAR(A75)) -> 2000 | C75: =Historical!E73 -> 2200 | D75: 2200 | E75: =Historical!F73 -> 2000 | F75: 2000 | G75: 4200 | H75: =VLOOKUP(B75,'EOS Storage'!$A$4:$C$27,2) -> 124 | I75: =IF(B75=B74,IF(J74<H75*1000,MIN(G75,(H75*1000-J74)/1.98347),0),G75) -> 0 | J75: 124000 | K75: 0 | L75: 0 | M75: =I75-K75 -> 0 | N75: 0 | O75: 28900 | P75: =O75+Tisdale!B67 -> 44713.95 | Q75: 40513.95 | R75: =intrp(Tisdale!$E$2:$F$14,Q75) -> 13194.5 | S75: 27319.45 | T75: 44713.95 | U75: =intrp(Tisdale!$E$2:$F$14,T75) -> 16961.72785 | V75: 27752.22215
A76: 2000-03-07 | B76: 2000 | C76: =Historical!E74 -> 2200 | D76: 2200 | E76: =Historical!F74 -> 2000 | F76: 2000 | G76: 4200 | H76: =VLOOKUP(B76,'EOS Storage'!$A$4:$C$27,2) -> 124 | I76: 0 | J76: =J75+I76*1.98347 -> 124000 | K76: 0 | L76: 0 | M76: 0 | N76: 0 | O76: 29200 | P76: =O76+Tisdale!B68 -> 45359.67 | Q76: 41159.67 | R76: =intrp(Tisdale!$E$2:$F$14,Q76) -> 13781.51818 | S76: 27378.15182 | T76: 45359.67 | U76: =intrp(Tisdale!$E$2:$F$14,T76) -> 17533.88481 | V76: 27825.78519
A77: 2000-03-08 | B77: 2000 | C77: =Historical!E75 -> 2200 | D77: 2200 | E77: =Historical!F75 -> 2000 | F77: 2000 | G77: 4200 | H77: =VLOOKUP(B77,'EOS Storage'!$A$4:$C$27,2) -> 124 | I77: 0 | J77: 124000 | K77: 0 | L77: 0 | M77: 0 | N77: 0 | O77: 28700 | P77: =O77+Tisdale!B69 -> 44403.64 | Q77: 40203.64 | R77: =intrp(Tisdale!$E$2:$F$14,Q77) -> 12912.4 | S77: 27291.24 | T77: 44403.64 | U77: =intrp(Tisdale!$E$2:$F$14,T77) -> 16686.76962 | V77: 27716.87038
A78: 2000-03-09 | B78: 2000 | C78: =Historical!E76 -> 2200 | D78: 2200 | E78: =Historical!F76 -> 2000 | F78: 2000 | G78: 4200 | H78: =VLOOKUP(B78,'EOS Storage'!$A$4:$C$27,2) -> 124 | I78: 0 | J78: 124000 | K78: 0 | L78: 0 | M78: 0 | N78: 0 | O78: 28400 | P78: =O78+Tisdale!B70 -> 43746.4 | Q78: =P78-D75-F76 -> 39546.4 | R78: =intrp(Tisdale!$E$2:$F$14,Q78) -> 12314.90909 | S78: =Q78-R78 -> 27231.49091 | T78: =P78-L75-N76 -> 43746.4 | U78: =intrp(Tisdale!$E$2:$F$14,T78) -> 16104.40506 | V78: =T78-U78 -> 27641.99494
A79: 2000-03-10 | B79: 2000 | C79: =Historical!E77 -> 2200 | D79: =AVERAGE(C75:C79) -> 2200 | E79: =Historical!F77 -> 2000 | F79: =AVERAGE(E75:E79) -> 2000 | G79: 4200 | H79: =VLOOKUP(B79,'EOS Storage'!$A$4:$C$27,2) -> 124 | I79: 0 | J79: 124000 | K79: 0 | L79: =AVERAGE(K75:K79) -> 0 | M79: 0 | N79: =AVERAGE(M75:M79) -> 0 | O79: 28500 | P79: =O79+Tisdale!B71 -> 43893.76 | Q79: 39693.76 | R79: =intrp(Tisdale!$E$2:$F$14,Q79) -> 12448.87273 | S79: 27244.88727 | T79: 43893.76 | U79: =intrp(Tisdale!$E$2:$F$14,T79) -> 16234.97722 | V79: 27658.78278
A80: 2000-03-11 | B80: 2000 | C80: =Historical!E78 -> 2200 | D80: 2200 | E80: =Historical!F78 -> 2000 | F80: 2000 | G80: 4200 | H80: =VLOOKUP(B80,'EOS Storage'!$A$4:$C$27,2) -> 124 | I80: 0 | J80: 124000 | K80: 0 | L80: 0 | M80: 0 | N80: 0 | O80: 28500 | P80: =O80+Tisdale!B72 -> 43870.6 | Q80: 39670.6 | R80: =intrp(Tisdale!$E$2:$F$14,Q80) -> 12427.81818 | S80: 27242.78182 | T80: 43870.6 | U80: =intrp(Tisdale!$E$2:$F$14,T80) -> 16214.4557 | V80: 27656.1443
A81: 2000-03-12 | B81: 2000 | C81: =Historical!E79 -> 2200 | D81: 2200 | E81: =Historical!F79 -> 2000 | F81: 2000 | G81: 4200 | H81: =VLOOKUP(B81,'EOS Storage'!$A$4:$C$27,2) -> 124 | I81: 0 | J81: 124000 | K81: 0 | L81: 0 | M81: 0 | N81: 0 | O81: 28100 | P81: =O81+Tisdale!B73 -> 43030.98 | Q81: 38830.98 | R81: =intrp(Tisdale!$E$2:$F$14,Q81) -> 11664.52727 | S81: 27166.45273 | T81: 43030.98 | U81: =intrp(Tisdale!$E$2:$F$14,T81) -> 15470.48861 | V81: 27560.49139
A82: 2000-03-13 | B82: 2000 | C82: =Historical!E80 -> 2200 | D82: 2200 | E82: =Historical!F80 -> 2000 | F82: 2000 | G82: 4200 | H82: =VLOOKUP(B82,'EOS Storage'!$A$4:$C$27,2) -> 124 | I82: 0 | J82: 124000 | K82: 0 | L82: 0 | M82: 0 | N82: 0 | O82: 27500 | P82: =O82+Tisdale!B74 -> 41788.83 | Q82: 37588.83 | R82: =intrp(Tisdale!$E$2:$F$14,Q82) -> 10535.3 | S82: 27053.53 | T82: 41788.83 | U82: =intrp(Tisdale!$E$2:$F$14,T82) -> 14353.48182 | V82: 27435.34818
A83: 2000-03-14 | B83: 2000 | C83: =Historical!E81 -> 2200 | D83: 2200 | E83: =Historical!F81 -> 2000 | F83: 2000 | G83: 4200 | H83: =VLOOKUP(B83,'EOS Storage'!$A$4:$C$27,2) -> 124 | I83: 0 | J83: 124000 | K83: 0 | L83: 0 | M83: 0 | N83: 0 | O83: 26900 | P83: =O83+Tisdale!B75 -> 40502.11 | Q83: 36302.11 | R83: =intrp(Tisdale!$E$2:$F$14,Q83) -> 9441.688 | S83: 26860.422 | T83: 40502.11 | U83: =intrp(Tisdale!$E$2:$F$14,T83) -> 13183.73636 | V83: 27318.37364
A84: 2000-03-15 | B84: 2000 | C84: =Historical!E82 -> 2200 | D84: 2200 | E84: =Historical!F82 -> 2000 | F84: 2000 | G84: 4200 | H84: =VLOOKUP(B84,'EOS Storage'!$A$4:$C$27,2) -> 124 | I84: 0 | J84: 124000 | K84: 0 | L84: 0 | M84: 0 | N84: 0 | O84: 26400 | P84: =O84+Tisdale!B76 -> 38746.2 | Q84: 34546.2 | R84: =intrp(Tisdale!$E$2:$F$14,Q84) -> 8036.96 | S84: 26509.24 | T84: 38746.2 | U84: =intrp(Tisdale!$E$2:$F$14,T84) -> 11587.45455 | V84: 27158.74545
A85: 2000-03-16 | B85: 2000 | C85: =Historical!E83 -> 2200 | D85: 2200 | E85: =Historical!F83 -> 2000 | F85: 2000 | G85: 4200 | H85: =VLOOKUP(B85,'EOS Storage'!$A$4:$C$27,2) -> 124 | I85: 0 | J85: 124000 | K85: 0 | L85: 0 | M85: 0 | N85: 0 | O85: 25800 | P85: =O85+Tisdale!B77 -> 34607.18 | Q85: 30407.18 | R85: =intrp(Tisdale!$E$2:$F$14,Q85) -> 4672.65 | S85: 25734.53 | T85: 34607.18 | U85: =intrp(Tisdale!$E$2:$F$14,T85) -> 8085.744 | V85: 26521.436
A86: 2000-03-17 | B86: 2000 | C86: =Historical!E84 -> 2200 | D86: 2200 | E86: =Historical!F84 -> 2000 | F86: 2000 | G86: 4200 | H86: =VLOOKUP(B86,'EOS Storage'!$A$4:$C$27,2) -> 124 | I86: 0 | J86: 124000 | K86: 0 | L86: 0 | M86: 0 | N86: 0 | O86: 24700 | P86: =O86+Tisdale!B78 -> 28856.69 | Q86: 24656.69 | R86: =intrp(Tisdale!$E$2:$F$14,Q86) -> 856.8074074 | S86: 23799.88259 | T86: 28856.69 | U86: =intrp(Tisdale!$E$2:$F$14,T86) -> 3628.345 | V86: 25228.345
A87: 2000-03-18 | B87: 2000 | C87: =Historical!E85 -> 2200 | D87: 2200 | E87: =Historical!F85 -> 2000 | F87: 2000 | G87: 4200 | H87: =VLOOKUP(B87,'EOS Storage'!$A$4:$C$27,2) -> 124 | I87: 0 | J87: 124000 | K87: 0 | L87: 0 | M87: 0 | N87: 0 | O87: 23600 | P87: =O87+Tisdale!B79 -> 25024.91 | Q87: 20824.91 | R87: =intrp(Tisdale!$E$2:$F$14,Q87) -> 0 | S87: 20824.91 | T87: 25024.91 | U87: =intrp(Tisdale!$E$2:$F$14,T87) -> 1129.562963 | V87: 23895.34704
A88: 2000-03-19 | B88: 2000 | C88: =Historical!E86 -> 2200 | D88: 2200 | E88: =Historical!F86 -> 2000 | F88: 2000 | G88: 4200 | H88: =VLOOKUP(B88,'EOS Storage'!$A$4:$C$27,2) -> 124 | I88: 0 | J88: 124000 | K88: 0 | L88: 0 | M88: 0 | N88: 0 | O88: 22400 | P88: =O88+Tisdale!B80 -> 22592.45 | Q88: 18392.45 | R88: =intrp(Tisdale!$E$2:$F$14,Q88) -> 0 | S88: 18392.45 | T88: 22592.45 | U88: =intrp(Tisdale!$E$2:$F$14,T88) -> 0 | V88: 22592.45
A89: 2000-03-20 | B89: 2000 | C89: =Historical!E87 -> 2200 | D89: 2200 | E89: =Historical!F87 -> 2000 | F89: 2000 | G89: 4200 | H89: =VLOOKUP(B89,'EOS Storage'!$A$4:$C$27,2) -> 124 | I89: 0 | J89: 124000 | K89: 0 | L89: 0 | M89: 0 | N89: 0 | O89: 20600 | P89: =O89+Tisdale!B81 -> 20600 | Q89: 16400 | R89: =intrp(Tisdale!$E$2:$F$14,Q89) -> 0 | S89: 16400 | T89: 20600 | U89: =intrp(Tisdale!$E$2:$F$14,T89) -> 0 | V89: 20600
A90: 2000-03-21 | B90: 2000 | C90: =Historical!E88 -> 2200 | D90: 2200 | E90: =Historical!F88 -> 2000 | F90: 2000 | G90: 4200 | H90: =VLOOKUP(B90,'EOS Storage'!$A$4:$C$27,2) -> 124 | I90: 0 | J90: 124000 | K90: 0 | L90: 0 | M90: 0 | N90: 0 | O90: 19800 | P90: =O90+Tisdale!B82 -> 19800 | Q90: 15600 | R90: =intrp(Tisdale!$E$2:$F$14,Q90) -> 0 | S90: 15600 | T90: 19800 | U90: =intrp(Tisdale!$E$2:$F$14,T90) -> 0 | V90: 19800
A91: 2000-03-22 | B91: 2000 | C91: =Historical!E89 -> 2200 | D91: 2200 | E91: =Historical!F89 -> 2000 | F91: 2000 | G91: 4200 | H91: =VLOOKUP(B91,'EOS Storage'!$A$4:$C$27,2) -> 124 | I91: 0 | J91: 124000 | K91: 0 | L91: 0 | M91: 0 | N91: 0 | O91: 19000 | P91: =O91+Tisdale!B83 -> 19000 | Q91: 14800 | R91: =intrp(Tisdale!$E$2:$F$14,Q91) -> 0 | S91: 14800 | T91: 19000 | U91: =intrp(Tisdale!$E$2:$F$14,T91) -> 0 | V91: 19000
A92: 2000-03-23 | B92: 2000 | C92: =Historical!E90 -> 2200 | D92: 2200 | E92: =Historical!F90 -> 2000 | F92: 2000 | G92: 4200 | H92: =VLOOKUP(B92,'EOS Storage'!$A$4:$C$27,2) -> 124 | I92: 0 | J92: 124000 | K92: 0 | L92: 0 | M92: 0 | N92: 0 | O92: 18100 | P92: =O92+Tisdale!B84 -> 18100 | Q92: 13900 | R92: =intrp(Tisdale!$E$2:$F$14,Q92) -> 0 | S92: 13900 | T92: 18100 | U92: =intrp(Tisdale!$E$2:$F$14,T92) -> 0 | V92: 18100
A93: 2000-03-24 | B93: 2000 | C93: =Historical!E91 -> 2200 | D93: 2200 | E93: =Historical!F91 -> 2000 | F93: 2000 | G93: 4200 | H93: =VLOOKUP(B93,'EOS Storage'!$A$4:$C$27,2) -> 124 | I93: 0 | J93: 124000 | K93: 0 | L93: 0 | M93: 0 | N93: 0 | O93: 17000 | P93: =O93+Tisdale!B85 -> 17000 | Q93: 12800 | R93: =intrp(Tisdale!$E$2:$F$14,Q93) -> 0 | S93: 12800 | T93: 17000 | U93: =intrp(Tisdale!$E$2:$F$14,T93) -> 0 | V93: 17000
A94: 2000-03-25 | B94: 2000 | C94: =Historical!E92 -> 2200 | D94: 2200 | E94: =Historical!F92 -> 2000 | F94: 2000 | G94: 4200 | H94: =VLOOKUP(B94,'EOS Storage'!$A$4:$C$27,2) -> 124 | I94: 0 | J94: 124000 | K94: 0 | L94: 0 | M94: 0 | N94: 0 | O94: 16000 | P94: =O94+Tisdale!B86 -> 16000 | Q94: 11800 | R94: =intrp(Tisdale!$E$2:$F$14,Q94) -> 0 | S94: 11800 | T94: 16000 | U94: =intrp(Tisdale!$E$2:$F$14,T94) -> 0 | V94: 16000
A95: 2000-03-26 | B95: 2000 | C95: =Historical!E93 -> 2200 | D95: 2200 | E95: =Historical!F93 -> 2000 | F95: 2000 | G95: 4200 | H95: =VLOOKUP(B95,'EOS Storage'!$A$4:$C$27,2) -> 124 | I95: 0 | J95: 124000 | K95: 0 | L95: 0 | M95: 0 | N95: 0 | O95: 15100 | P95: =O95+Tisdale!B87 -> 15100 | Q95: 10900 | R95: =intrp(Tisdale!$E$2:$F$14,Q95) -> 0 | S95: 10900 | T95: 15100 | U95: =intrp(Tisdale!$E$2:$F$14,T95) -> 0 | V95: 15100
A96: 2000-03-27 | B96: 2000 | C96: =Historical!E94 -> 2200 | D96: 2200 | E96: =Historical!F94 -> 1600 | F96: 1920 | G96: 3800 | H96: =VLOOKUP(B96,'EOS Storage'!$A$4:$C$27,2) -> 124 | I96: 0 | J96: 124000 | K96: 0 | L96: 0 | M96: 0 | N96: 0 | O96: 14500 | P96: =O96+Tisdale!B88 -> 14500 | Q96: 10300 | R96: =intrp(Tisdale!$E$2:$F$14,Q96) -> 0 | S96: 10300 | T96: 14500 | U96: =intrp(Tisdale!$E$2:$F$14,T96) -> 0 | V96: 14500
A97: 2000-03-28 | B97: 2000 | C97: =Historical!E95 -> 2200 | D97: 2200 | E97: =Historical!F95 -> 1100 | F97: 1740 | G97: 3300 | H97: =VLOOKUP(B97,'EOS Storage'!$A$4:$C$27,2) -> 124 | I97: 0 | J97: 124000 | K97: 0 | L97: 0 | M97: 0 | N97: 0 | O97: 14000 | P97: =O97+Tisdale!B89 -> 14000 | Q97: 9800 | R97: =intrp(Tisdale!$E$2:$F$14,Q97) -> 0 | S97: 9800 | T97: 14000 | U97: =intrp(Tisdale!$E$2:$F$14,T97) -> 0 | V97: 14000
A98: 2000-03-29 | B98: 2000 | C98: =Historical!E96 -> 2200 | D98: 2200 | E98: =Historical!F96 -> 800 | F98: 1500 | G98: 3000 | H98: =VLOOKUP(B98,'EOS Storage'!$A$4:$C$27,2) -> 124 | I98: 0 | J98: 124000 | K98: 0 | L98: 0 | M98: 0 | N98: 0 | O98: 13700 | P98: =O98+Tisdale!B90 -> 13700 | Q98: 9580 | R98: =intrp(Tisdale!$E$2:$F$14,Q98) -> 0 | S98: 9580 | T98: 13700 | U98: =intrp(Tisdale!$E$2:$F$14,T98) -> 0 | V98: 13700
A99: 2000-03-30 | B99: 2000 | C99: =Historical!E97 -> 2200 | D99: 2200 | E99: =Historical!F97 -> 400 | F99: 1180 | G99: 2600 | H99: =VLOOKUP(B99,'EOS Storage'!$A$4:$C$27,2) -> 124 | I99: 0 | J99: 124000 | K99: 0 | L99: 0 | M99: 0 | N99: 0 | O99: 13300 | P99: =O99+Tisdale!B91 -> 13300 | Q99: 9360 | R99: =intrp(Tisdale!$E$2:$F$14,Q99) -> 0 | S99: 9360 | T99: 13300 | U99: =intrp(Tisdale!$E$2:$F$14,T99) -> 0 | V99: 13300
A100: 2000-03-31 | B100: 2000 | C100: =Historical!E98 -> 2000 | D100: 2160 | E100: =Historical!F98 -> 0 | F100: 780 | G100: 2000 | H100: =VLOOKUP(B100,'EOS Storage'!$A$4:$C$27,2) -> 124 | I100: 0 | J100: 124000 | K100: 0 | L100: 0 | M100: 0 | N100: 0 | O100: 12700 | P100: =O100+Tisdale!B92 -> 12700 | Q100: 9000 | R100: =intrp(Tisdale!$E$2:$F$14,Q100) -> 0 | S100: 9000 | T100: 12700 | U100: =intrp(Tisdale!$E$2:$F$14,T100) -> 0 | V100: 12700
A101: 2000-04-01 | B101: 2000 | C101: =Historical!E99 -> 1600 | D101: 2040 | E101: =Historical!F99 -> 0 | F101: 460 | G101: 1600 | H101: =VLOOKUP(B101,'EOS Storage'!$A$4:$C$27,2) -> 124 | I101: 0 | J101: 124000 | K101: 0 | L101: 0 | M101: 0 | N101: 0 | O101: 12300 | P101: =O101+Tisdale!B93 -> 12300 | Q101: 8920 | R101: =intrp(Tisdale!$E$2:$F$14,Q101) -> 0 | S101: 8920 | T101: 12300 | U101: =intrp(Tisdale!$E$2:$F$14,T101) -> 0 | V101: 12300
A102: 2000-04-02 | B102: 2000 | C102: =Historical!E100 -> 1000 | D102: 1800 | E102: =Historical!F100 -> 0 | F102: 240 | G102: 1000 | H102: =VLOOKUP(B102,'EOS Storage'!$A$4:$C$27,2) -> 124 | I102: 0 | J102: 124000 | K102: 0 | L102: 0 | M102: 0 | N102: 0 | O102: 11700 | P102: =O102+Tisdale!B94 -> 11700 | Q102: 8720 | R102: =intrp(Tisdale!$E$2:$F$14,Q102) -> 0 | S102: 8720 | T102: 11700 | U102: =intrp(Tisdale!$E$2:$F$14,T102) -> 0 | V102: 11700
A103: 2000-04-03 | B103: 2000 | C103: =Historical!E101 -> 600 | D103: 1480 | E103: =Historical!F101 -> 0 | F103: 80 | G103: 600 | H103: =VLOOKUP(B103,'EOS Storage'!$A$4:$C$27,2) -> 124 | I103: 0 | J103: 124000 | K103: 0 | L103: 0 | M103: 0 | N103: 0 | O103: 11300 | P103: =O103+Tisdale!B95 -> 11300 | Q103: 8680 | R103: =intrp(Tisdale!$E$2:$F$14,Q103) -> 0 | S103: 8680 | T103: 11300 | U103: =intrp(Tisdale!$E$2:$F$14,T103) -> 0 | V103: 11300
A104: 2000-04-04 | B104: 2000 | C104: =Historical!E102 -> 300 | D104: 1100 | E104: =Historical!F102 -> 0 | F104: 0 | G104: 300 | H104: =VLOOKUP(B104,'EOS Storage'!$A$4:$C$27,2) -> 124 | I104: 0 | J104: 124000 | K104: 0 | L104: 0 | M104: 0 | N104: 0 | O104: 11000 | P104: =O104+Tisdale!B96 -> 11000 | Q104: 8720 | R104: =intrp(Tisdale!$E$2:$F$14,Q104) -> 0 | S104: 8720 | T104: 11000 | U104: =intrp(Tisdale!$E$2:$F$14,T104) -> 0 | V104: 11000
A105: 2000-04-05 | B105: 2000 | C105: =Historical!E103 -> 100 | D105: 720 | E105: =Historical!F103 -> 0 | F105: 0 | G105: 100 | H105: =VLOOKUP(B105,'EOS Storage'!$A$4:$C$27,2) -> 124 | I105: 0 | J105: 124000 | K105: 0 | L105: 0 | M105: 0 | N105: 0 | O105: 10800 | P105: =O105+Tisdale!B97 -> 10800 | Q105: 8920 | R105: =intrp(Tisdale!$E$2:$F$14,Q105) -> 0 | S105: 8920 | T105: 10800 | U105: =intrp(Tisdale!$E$2:$F$14,T105) -> 0 | V105: 10800
A106: 2000-04-06 | B106: 2000 | C106: =Historical!E104 -> 0 | D106: 400 | E106: =Historical!F104 -> 0 | F106: 0 | G106: 0 | H106: =VLOOKUP(B106,'EOS Storage'!$A$4:$C$27,2) -> 124 | I106: 0 | J106: 124000 | K106: 0 | L106: 0 | M106: 0 | N106: 0 | O106: 10700 | P106: =O106+Tisdale!B98 -> 10700 | Q106: 9220 | R106: =intrp(Tisdale!$E$2:$F$14,Q106) -> 0 | S106: 9220 | T106: 10700 | U106: =intrp(Tisdale!$E$2:$F$14,T106) -> 0 | V106: 10700
A107: 2000-04-07 | B107: 2000 | C107: =Historical!E105 -> 0 | D107: 200 | E107: =Historical!F105 -> 0 | F107: 0 | G107: 0 | H107: =VLOOKUP(B107,'EOS Storage'!$A$4:$C$27,2) -> 124 | I107: 0 | J107: 124000 | K107: 0 | L107: 0 | M107: 0 | N107: 0 | O107: 10500 | P107: =O107+Tisdale!B99 -> 10500 | Q107: 9400 | R107: =intrp(Tisdale!$E$2:$F$14,Q107) -> 0 | S107: 9400 | T107: 10500 | U107: =intrp(Tisdale!$E$2:$F$14,T107) -> 0 | V107: 10500
A108: 2000-04-08 | B108: 2000 | C108: =Historical!E106 -> 0 | D108: 80 | E108: =Historical!F106 -> 0 | F108: 0 | G108: 0 | H108: =VLOOKUP(B108,'EOS Storage'!$A$4:$C$27,2) -> 124 | I108: 0 | J108: 124000 | K108: 0 | L108: 0 | M108: 0 | N108: 0 | O108: 10200 | P108: =O108+Tisdale!B100 -> 10200 | Q108: 9480 | R108: =intrp(Tisdale!$E$2:$F$14,Q108) -> 0 | S108: 9480 | T108: 10200 | U108: =intrp(Tisdale!$E$2:$F$14,T108) -> 0 | V108: 10200
A109: 2000-04-09 | B109: 2000 | C109: =Historical!E107 -> 0 | D109: 20 | E109: =Historical!F107 -> 0 | F109: 0 | G109: 0 | H109: =VLOOKUP(B109,'EOS Storage'!$A$4:$C$27,2) -> 124 | I109: 0 | J109: 124000 | K109: 0 | L109: 0 | M109: 0 | N109: 0 | O109: 9990 | P109: =O109+Tisdale!B101 -> 9990 | Q109: 9590 | R109: =intrp(Tisdale!$E$2:$F$14,Q109) -> 0 | S109: 9590 | T109: 9990 | U109: =intrp(Tisdale!$E$2:$F$14,T109) -> 0 | V109: 9990
A110: 2000-04-10 | B110: 2000 | C110: =Historical!E108 -> 0 | D110: 0 | E110: =Historical!F108 -> 0 | F110: 0 | G110: 0 | H110: =VLOOKUP(B110,'EOS Storage'!$A$4:$C$27,2) -> 124 | I110: 0 | J110: 124000 | K110: 0 | L110: 0 | M110: 0 | N110: 0 | O110: 10500 | P110: =O110+Tisdale!B102 -> 10500 | Q110: 10300 | R110: =intrp(Tisdale!$E$2:$F$14,Q110) -> 0 | S110: 10300 | T110: 10500 | U110: =intrp(Tisdale!$E$2:$F$14,T110) -> 0 | V110: 10500
A111: 2000-04-11 | B111: 2000 | C111: =Historical!E109 -> 400 | D111: 80 | E111: =Historical!F109 -> 0 | F111: 0 | G111: 400 | H111: =VLOOKUP(B111,'EOS Storage'!$A$4:$C$27,2) -> 124 | I111: 0 | J111: 124000 | K111: 0 | L111: 0 | M111: 0 | N111: 0 | O111: 11100 | P111: =O111+Tisdale!B103 -> 11100 | Q111: 11020 | R111: =intrp(Tisdale!$E$2:$F$14,Q111) -> 0 | S111: 11020 | T111: 11100 | U111: =intrp(Tisdale!$E$2:$F$14,T111) -> 0 | V111: 11100
A112: 2000-04-12 | B112: 2000 | C112: =Historical!E110 -> 500 | D112: 180 | E112: =Historical!F110 -> 0 | F112: 0 | G112: 500 | H112: =VLOOKUP(B112,'EOS Storage'!$A$4:$C$27,2) -> 124 | I112: 0 | J112: 124000 | K112: 0 | L112: 0 | M112: 0 | N112: 0 | O112: 11200 | P112: =O112+Tisdale!B104 -> 11200 | Q112: 11180 | R112: =intrp(Tisdale!$E$2:$F$14,Q112) -> 0 | S112: 11180 | T112: 11200 | U112: =intrp(Tisdale!$E$2:$F$14,T112) -> 0 | V112: 11200
A113: 2000-04-13 | B113: 2000 | C113: =Historical!E111 -> 500 | D113: 280 | E113: =Historical!F111 -> 0 | F113: 0 | G113: 500 | H113: =VLOOKUP(B113,'EOS Storage'!$A$4:$C$27,2) -> 124 | I113: 0 | J113: 124000 | K113: 0 | L113: 0 | M113: 0 | N113: 0 | O113: 11200 | P113: =O113+Tisdale!B105 -> 11200 | Q113: 11200 | R113: =intrp(Tisdale!$E$2:$F$14,Q113) -> 0 | S113: 11200 | T113: 11200 | U113: =intrp(Tisdale!$E$2:$F$14,T113) -> 0 | V113: 11200
A114: 2000-04-14 | B114: 2000 | C114: =Historical!E112 -> 600 | D114: 400 | E114: =Historical!F112 -> 0 | F114: 0 | G114: 600 | H114: =VLOOKUP(B114,'EOS Storage'!$A$4:$C$27,2) -> 124 | I114: 0 | J114: 124000 | K114: 0 | L114: 0 | M114: 0 | N114: 0 | O114: 11300 | P114: =O114+Tisdale!B106 -> 11300 | Q114: 11220 | R114: =intrp(Tisdale!$E$2:$F$14,Q114) -> 0 | S114: 11220 | T114: 11300 | U114: =intrp(Tisdale!$E$2:$F$14,T114) -> 0 | V114: 11300
A115: 2000-04-15 | B115: 2000 | C115: =Historical!E113 -> 1200 | D115: 640 | E115: =Historical!F113 -> 0 | F115: 0 | G115: 1200 | H115: =VLOOKUP(B115,'EOS Storage'!$A$4:$C$27,2) -> 124 | I115: 0 | J115: 124000 | K115: 0 | L115: 0 | M115: 0 | N115: 0 | O115: 11900 | P115: =O115+Tisdale!B107 -> 11900 | Q115: 11720 | R115: =intrp(Tisdale!$E$2:$F$14,Q115) -> 0 | S115: 11720 | T115: 11900 | U115: =intrp(Tisdale!$E$2:$F$14,T115) -> 0 | V115: 11900
A116: 2000-04-16 | B116: 2000 | C116: =Historical!E114 -> 1000 | D116: 760 | E116: =Historical!F114 -> 0 | F116: 0 | G116: 1000 | H116: =VLOOKUP(B116,'EOS Storage'!$A$4:$C$27,2) -> 124 | I116: 0 | J116: 124000 | K116: 0 | L116: 0 | M116: 0 | N116: 0 | O116: 11700 | P116: =O116+Tisdale!B108 -> 11700 | Q116: 11420 | R116: =intrp(Tisdale!$E$2:$F$14,Q116) -> 0 | S116: 11420 | T116: 11700 | U116: =intrp(Tisdale!$E$2:$F$14,T116) -> 0 | V116: 11700
A117: 2000-04-17 | B117: 2000 | C117: =Historical!E115 -> 900 | D117: 840 | E117: =Historical!F115 -> 0 | F117: 0 | G117: 900 | H117: =VLOOKUP(B117,'EOS Storage'!$A$4:$C$27,2) -> 124 | I117: 0 | J117: 124000 | K117: 0 | L117: 0 | M117: 0 | N117: 0 | O117: 11600 | P117: =O117+Tisdale!B109 -> 11600 | Q117: 11200 | R117: =intrp(Tisdale!$E$2:$F$14,Q117) -> 0 | S117: 11200 | T117: 11600 | U117: =intrp(Tisdale!$E$2:$F$14,T117) -> 0 | V117: 11600
A118: 2000-04-18 | B118: 2000 | C118: =Historical!E116 -> 2200 | D118: 1180 | E118: =Historical!F116 -> 1000 | F118: 200 | G118: 3200 | H118: =VLOOKUP(B118,'EOS Storage'!$A$4:$C$27,2) -> 124 | I118: 0 | J118: 124000 | K118: 0 | L118: 0 | M118: 0 | N118: 0 | O118: 13900 | P118: =O118+Tisdale!B110 -> 13900 | Q118: 13260 | R118: =intrp(Tisdale!$E$2:$F$14,Q118) -> 0 | S118: 13260 | T118: 13900 | U118: =intrp(Tisdale!$E$2:$F$14,T118) -> 0 | V118: 13900
A119: 2000-04-19 | B119: 2000 | C119: =Historical!E117 -> 2200 | D119: 1500 | E119: =Historical!F117 -> 2000 | F119: 600 | G119: 4200 | H119: =VLOOKUP(B119,'EOS Storage'!$A$4:$C$27,2) -> 124 | I119: 0 | J119: 124000 | K119: 0 | L119: 0 | M119: 0 | N119: 0 | O119: 18900 | P119: =O119+Tisdale!B111 -> 18900 | Q119: 18140 | R119: =intrp(Tisdale!$E$2:$F$14,Q119) -> 0 | S119: 18140 | T119: 18900 | U119: =intrp(Tisdale!$E$2:$F$14,T119) -> 0 | V119: 18900
A120: 2000-04-20 | B120: 2000 | C120: =Historical!E118 -> 2200 | D120: 1700 | E120: =Historical!F118 -> 2000 | F120: 1000 | G120: 4200 | H120: =VLOOKUP(B120,'EOS Storage'!$A$4:$C$27,2) -> 124 | I120: 0 | J120: 124000 | K120: 0 | L120: 0 | M120: 0 | N120: 0 | O120: 18400 | P120: =O120+Tisdale!B112 -> 18400 | Q120: 17360 | R120: =intrp(Tisdale!$E$2:$F$14,Q120) -> 0 | S120: 17360 | T120: 18400 | U120: =intrp(Tisdale!$E$2:$F$14,T120) -> 0 | V120: 18400
A121: 2000-04-21 | B121: 2000 | C121: =Historical!E119 -> 2200 | D121: 1940 | E121: =Historical!F119 -> 2000 | F121: 1400 | G121: 4200 | H121: =VLOOKUP(B121,'EOS Storage'!$A$4:$C$27,2) -> 124 | I121: 0 | J121: 124000 | K121: 0 | L121: 0 | M121: 0 | N121: 0 | O121: 16300 | P121: =O121+Tisdale!B113 -> 16300 | Q121: 14520 | R121: =intrp(Tisdale!$E$2:$F$14,Q121) -> 0 | S121: 14520 | T121: 16300 | U121: =intrp(Tisdale!$E$2:$F$14,T121) -> 0 | V121: 16300
A122: 2000-04-22 | B122: 2000 | C122: =Historical!E120 -> 2200 | D122: 2200 | E122: =Historical!F120 -> 1800 | F122: 1760 | G122: 4000 | H122: =VLOOKUP(B122,'EOS Storage'!$A$4:$C$27,2) -> 124 | I122: 0 | J122: 124000 | K122: 0 | L122: 0 | M122: 0 | N122: 0 | O122: 14700 | P122: =O122+Tisdale!B114 -> 14700 | Q122: 12200 | R122: =intrp(Tisdale!$E$2:$F$14,Q122) -> 0 | S122: 12200 | T122: 14700 | U122: =intrp(Tisdale!$E$2:$F$14,T122) -> 0 | V122: 14700
A123: 2000-04-23 | B123: 2000 | C123: =Historical!E121 -> 2200 | D123: 2200 | E123: =Historical!F121 -> 900 | F123: 1740 | G123: 3100 | H123: =VLOOKUP(B123,'EOS Storage'!$A$4:$C$27,2) -> 124 | I123: 0 | J123: 124000 | K123: 0 | L123: 0 | M123: 0 | N123: 0 | O123: 13800 | P123: =O123+Tisdale!B115 -> 13800 | Q123: 10700 | R123: =intrp(Tisdale!$E$2:$F$14,Q123) -> 0 | S123: 10700 | T123: 13800 | U123: =intrp(Tisdale!$E$2:$F$14,T123) -> 0 | V123: 13800
A124: 2000-04-24 | B124: 2000 | C124: =Historical!E122 -> 2200 | D124: 2200 | E124: =Historical!F122 -> 400 | F124: 1420 | G124: 2600 | H124: =VLOOKUP(B124,'EOS Storage'!$A$4:$C$27,2) -> 124 | I124: 0 | J124: 124000 | K124: 0 | L124: 0 | M124: 0 | N124: 0 | O124: 13300 | P124: =O124+Tisdale!B116 -> 13300 | Q124: 9600 | R124: =intrp(Tisdale!$E$2:$F$14,Q124) -> 0 | S124: 9600 | T124: 13300 | U124: =intrp(Tisdale!$E$2:$F$14,T124) -> 0 | V124: 13300
A125: 2000-04-25 | B125: 2000 | C125: =Historical!E123 -> 1900 | D125: 2140 | E125: =Historical!F123 -> 0 | F125: 1020 | G125: 1900 | H125: =VLOOKUP(B125,'EOS Storage'!$A$4:$C$27,2) -> 124 | I125: 0 | J125: 124000 | K125: 0 | L125: 0 | M125: 0 | N125: 0 | O125: 12600 | P125: =O125+Tisdale!B117 -> 12600 | Q125: 8660 | R125: =intrp(Tisdale!$E$2:$F$14,Q125) -> 0 | S125: 8660 | T125: 12600 | U125: =intrp(Tisdale!$E$2:$F$14,T125) -> 0 | V125: 12600
A126: 2000-04-26 | B126: 2000 | C126: =Historical!E124 -> 1200 | D126: 1940 | E126: =Historical!F124 -> 0 | F126: 620 | G126: 1200 | H126: =VLOOKUP(B126,'EOS Storage'!$A$4:$C$27,2) -> 124 | I126: 0 | J126: 124000 | K126: 0 | L126: 0 | M126: 0 | N126: 0 | O126: 11900 | P126: =O126+Tisdale!B118 -> 11900 | Q126: 8280 | R126: =intrp(Tisdale!$E$2:$F$14,Q126) -> 0 | S126: 8280 | T126: 11900 | U126: =intrp(Tisdale!$E$2:$F$14,T126) -> 0 | V126: 11900
A127: 2000-04-27 | B127: 2000 | C127: =Historical!E125 -> 300 | D127: 1560 | E127: =Historical!F125 -> 0 | F127: 260 | G127: 300 | H127: =VLOOKUP(B127,'EOS Storage'!$A$4:$C$27,2) -> 124 | I127: 0 | J127: 124000 | K127: 0 | L127: 0 | M127: 0 | N127: 0 | O127: 11000 | P127: =O127+Tisdale!B119 -> 11000 | Q127: 7780 | R127: =intrp(Tisdale!$E$2:$F$14,Q127) -> 0 | S127: 7780 | T127: 11000 | U127: =intrp(Tisdale!$E$2:$F$14,T127) -> 0 | V127: 11000
A128: 2000-04-28 | B128: 2000 | C128: =Historical!E126 -> 0 | D128: 1120 | E128: =Historical!F126 -> 0 | F128: 80 | G128: 0 | H128: =VLOOKUP(B128,'EOS Storage'!$A$4:$C$27,2) -> 124 | I128: 0 | J128: 124000 | K128: 0 | L128: 0 | M128: 0 | N128: 0 | O128: 10300 | P128: =O128+Tisdale!B120 -> 10300 | Q128: 7540 | R128: =intrp(Tisdale!$E$2:$F$14,Q128) -> 0 | S128: 7540 | T128: 10300 | U128: =intrp(Tisdale!$E$2:$F$14,T128) -> 0 | V128: 10300
A129: 2000-04-29 | B129: 2000 | C129: =Historical!E127 -> 0 | D129: 680 | E129: =Historical!F127 -> 0 | F129: 0 | G129: 0 | H129: =VLOOKUP(B129,'EOS Storage'!$A$4:$C$27,2) -> 124 | I129: 0 | J129: 124000 | K129: 0 | L129: 0 | M129: 0 | N129: 0 | O129: 9880 | P129: =O129+Tisdale!B121 -> 9880 | Q129: 7680 | R129: =intrp(Tisdale!$E$2:$F$14,Q129) -> 0 | S129: 7680 | T129: 9880 | U129: =intrp(Tisdale!$E$2:$F$14,T129) -> 0 | V129: 9880
A130: 2000-04-30 | B130: 2000 | C130: =Historical!E128 -> 0 | D130: 300 | E130: =Historical!F128 -> 0 | F130: 0 | G130: 0 | H130: =VLOOKUP(B130,'EOS Storage'!$A$4:$C$27,2) -> 124 | I130: 0 | J130: 124000 | K130: 0 | L130: 0 | M130: 0 | N130: 0 | O130: 9870 | P130: =O130+Tisdale!B122 -> 9870 | Q130: 8230 | R130: =intrp(Tisdale!$E$2:$F$14,Q130) -> 0 | S130: 8230 | T130: 9870 | U130: =intrp(Tisdale!$E$2:$F$14,T130) -> 0 | V130: 9870
A131: 2000-05-01 | B131: 2000 | C131: =Historical!E129 -> 0 | D131: 60 | E131: =Historical!F129 -> 0 | F131: 0 | G131: 0 | H131: =VLOOKUP(B131,'EOS Storage'!$A$4:$C$27,2) -> 124 | I131: 0 | J131: 124000 | K131: 0 | L131: 0 | M131: 0 | N131: 0 | O131: 10100 | P131: =O131+Tisdale!B123 -> 10100 | Q131: 8980 | R131: =intrp(Tisdale!$E$2:$F$14,Q131) -> 0 | S131: 8980 | T131: 10100 | U131: =intrp(Tisdale!$E$2:$F$14,T131) -> 0 | V131: 10100
A132: 2000-05-02 | B132: 2000 | C132: =Historical!E130 -> 0 | D132: 0 | E132: =Historical!F130 -> 0 | F132: 0 | G132: 0 | H132: =VLOOKUP(B132,'EOS Storage'!$A$4:$C$27,2) -> 124 | I132: 0 | J132: 124000 | K132: 0 | L132: 0 | M132: 0 | N132: 0 | O132: 9900 | P132: =O132+Tisdale!B124 -> 9900 | Q132: 9220 | R132: =intrp(Tisdale!$E$2:$F$14,Q132) -> 0 | S132: 9220 | T132: 9900 | U132: =intrp(Tisdale!$E$2:$F$14,T132) -> 0 | V132: 9900
A133: 2000-05-03 | B133: 2000 | C133: =Historical!E131 -> 0 | D133: 0 | E133: =Historical!F131 -> 0 | F133: 0 | G133: 0 | H133: =VLOOKUP(B133,'EOS Storage'!$A$4:$C$27,2) -> 124 | I133: 0 | J133: 124000 | K133: 0 | L133: 0 | M133: 0 | N133: 0 | O133: 10100 | P133: =O133+Tisdale!B125 -> 10100 | Q133: 9800 | R133: =intrp(Tisdale!$E$2:$F$14,Q133) -> 0 | S133: 9800 | T133: 10100 | U133: =intrp(Tisdale!$E$2:$F$14,T133) -> 0 | V133: 10100
A134: 2000-05-04 | B134: 2000 | C134: =Historical!E132 -> 0 | D134: 0 | E134: =Historical!F132 -> 0 | F134: 0 | G134: 0 | H134: =VLOOKUP(B134,'EOS Storage'!$A$4:$C$27,2) -> 124 | I134: 0 | J134: 124000 | K134: 0 | L134: 0 | M134: 0 | N134: 0 | O134: 10800 | P134: =O134+Tisdale!B126 -> 10800 | Q134: 10740 | R134: =intrp(Tisdale!$E$2:$F$14,Q134) -> 0 | S134: 10740 | T134: 10800 | U134: =intrp(Tisdale!$E$2:$F$14,T134) -> 0 | V134: 10800
A135: 2000-05-05 | B135: 2000 | C135: =Historical!E133 -> 0 | D135: 0 | E135: =Historical!F133 -> 0 | F135: 0 | G135: 0 | H135: =VLOOKUP(B135,'EOS Storage'!$A$4:$C$27,2) -> 124 | I135: 0 | J135: 124000 | K135: 0 | L135: 0 | M135: 0 | N135: 0 | O135: 10800 | P135: =O135+Tisdale!B127 -> 10800 | Q135: 10800 | R135: =intrp(Tisdale!$E$2:$F$14,Q135) -> 0 | S135: 10800 | T135: 10800 | U135: =intrp(Tisdale!$E$2:$F$14,T135) -> 0 | V135: 10800
A136: 2000-05-06 | B136: 2000 | C136: =Historical!E134 -> 0 | D136: 0 | E136: =Historical!F134 -> 0 | F136: 0 | G136: 0 | H136: =VLOOKUP(B136,'EOS Storage'!$A$4:$C$27,2) -> 124 | I136: 0 | J136: 124000 | K136: 0 | L136: 0 | M136: 0 | N136: 0 | O136: 10700 | P136: =O136+Tisdale!B128 -> 10700 | Q136: 10700 | R136: =intrp(Tisdale!$E$2:$F$14,Q136) -> 0 | S136: 10700 | T136: 10700 | U136: =intrp(Tisdale!$E$2:$F$14,T136) -> 0 | V136: 10700
A137: 2000-05-07 | B137: 2000 | C137: =Historical!E135 -> 0 | D137: 0 | E137: =Historical!F135 -> 0 | F137: 0 | G137: 0 | H137: =VLOOKUP(B137,'EOS Storage'!$A$4:$C$27,2) -> 124 | I137: 0 | J137: 124000 | K137: 0 | L137: 0 | M137: 0 | N137: 0 | O137: 11100 | P137: =O137+Tisdale!B129 -> 11100 | Q137: 11100 | R137: =intrp(Tisdale!$E$2:$F$14,Q137) -> 0 | S137: 11100 | T137: 11100 | U137: =intrp(Tisdale!$E$2:$F$14,T137) -> 0 | V137: 11100
A138: 2000-05-08 | B138: 2000 | C138: =Historical!E136 -> 0 | D138: 0 | E138: =Historical!F136 -> 0 | F138: 0 | G138: =C138+E138 -> 0 | H138: =VLOOKUP(B138,'EOS Storage'!$A$4:$C$27,2) -> 124 | I138: 0 | J138: 124000 | K138: =IF(I138<C138,MIN($K$1,I138),C138) -> 0 | L138: 0 | M138: 0 | N138: 0 | O138: 11200 | P138: =O138+Tisdale!B130 -> 11200 | Q138: 11200 | R138: =intrp(Tisdale!$E$2:$F$14,Q138) -> 0 | S138: 11200 | T138: 11200 | U138: =intrp(Tisdale!$E$2:$F$14,T138) -> 0 | V138: 11200
A139: 2000-05-09 | B139: =IF(MONTH(A139)>9,YEAR(A139)+1,YEAR(A139)) -> 2000 | C139: =Historical!E137 -> 0 | D139: 0 | E139: =Historical!F137 -> 0 | F139: 0 | G139: 0 | H139: =VLOOKUP(B139,'EOS Storage'!$A$4:$C$27,2) -> 124 | I139: =IF(B139=B138,IF(J138<H139*1000,MIN(G139,(H139*1000-J138)/1.98347),0),G139) -> 0 | J139: 124000 | K139: 0 | L139: 0 | M139: =I139-K139 -> 0 | N139: 0 | O139: 11200 | P139: =O139+Tisdale!B131 -> 11200 | Q139: 11200 | R139: =intrp(Tisdale!$E$2:$F$14,Q139) -> 0 | S139: 11200 | T139: 11200 | U139: =intrp(Tisdale!$E$2:$F$14,T139) -> 0 | V139: 11200
A140: 2000-05-10 | B140: 2000 | C140: =Historical!E138 -> 0 | D140: 0 | E140: =Historical!F138 -> 0 | F140: 0 | G140: 0 | H140: =VLOOKUP(B140,'EOS Storage'!$A$4:$C$27,2) -> 124 | I140: 0 | J140: =J139+I140*1.98347 -> 124000 | K140: 0 | L140: 0 | M140: 0 | N140: 0 | O140: 10900 | P140: =O140+Tisdale!B132 -> 10900 | Q140: 10900 | R140: =intrp(Tisdale!$E$2:$F$14,Q140) -> 0 | S140: 10900 | T140: 10900 | U140: =intrp(Tisdale!$E$2:$F$14,T140) -> 0 | V140: 10900
A141: 2000-05-11 | B141: 2000 | C141: =Historical!E139 -> 0 | D141: 0 | E141: =Historical!F139 -> 0 | F141: 0 | G141: 0 | H141: =VLOOKUP(B141,'EOS Storage'!$A$4:$C$27,2) -> 124 | I141: 0 | J141: 124000 | K141: 0 | L141: 0 | M141: 0 | N141: 0 | O141: 9790 | P141: =O141+Tisdale!B133 -> 9790 | Q141: 9790 | R141: =intrp(Tisdale!$E$2:$F$14,Q141) -> 0 | S141: 9790 | T141: 9790 | U141: =intrp(Tisdale!$E$2:$F$14,T141) -> 0 | V141: 9790
A142: 2000-05-12 | B142: 2000 | C142: =Historical!E140 -> 0 | D142: 0 | E142: =Historical!F140 -> 0 | F142: 0 | G142: 0 | H142: =VLOOKUP(B142,'EOS Storage'!$A$4:$C$27,2) -> 124 | I142: 0 | J142: 124000 | K142: 0 | L142: 0 | M142: 0 | N142: 0 | O142: 8970 | P142: =O142+Tisdale!B134 -> 8970 | Q142: =P142-D139-F140 -> 8970 | R142: =intrp(Tisdale!$E$2:$F$14,Q142) -> 0 | S142: =Q142-R142 -> 8970 | T142: =P142-L139-N140 -> 8970 | U142: =intrp(Tisdale!$E$2:$F$14,T142) -> 0 | V142: =T142-U142 -> 8970
A143: 2000-05-13 | B143: 2000 | C143: =Historical!E141 -> 0 | D143: =AVERAGE(C139:C143) -> 0 | E143: =Historical!F141 -> 0 | F143: =AVERAGE(E139:E143) -> 0 | G143: 0 | H143: =VLOOKUP(B143,'EOS Storage'!$A$4:$C$27,2) -> 124 | I143: 0 | J143: 124000 | K143: 0 | L143: =AVERAGE(K139:K143) -> 0 | M143: 0 | N143: =AVERAGE(M139:M143) -> 0 | O143: 8180 | P143: =O143+Tisdale!B135 -> 8180 | Q143: 8180 | R143: =intrp(Tisdale!$E$2:$F$14,Q143) -> 0 | S143: 8180 | T143: 8180 | U143: =intrp(Tisdale!$E$2:$F$14,T143) -> 0 | V143: 8180
A144: 2000-05-14 | B144: 2000 | C144: =Historical!E142 -> 0 | D144: 0 | E144: =Historical!F142 -> 0 | F144: 0 | G144: 0 | H144: =VLOOKUP(B144,'EOS Storage'!$A$4:$C$27,2) -> 124 | I144: 0 | J144: 124000 | K144: 0 | L144: 0 | M144: 0 | N144: 0 | O144: 7700 | P144: =O144+Tisdale!B136 -> 7700 | Q144: 7700 | R144: =intrp(Tisdale!$E$2:$F$14,Q144) -> 0 | S144: 7700 | T144: 7700 | U144: =intrp(Tisdale!$E$2:$F$14,T144) -> 0 | V144: 7700
A145: 2000-05-15 | B145: 2000 | C145: =Historical!E143 -> 0 | D145: 0 | E145: =Historical!F143 -> 0 | F145: 0 | G145: 0 | H145: =VLOOKUP(B145,'EOS Storage'!$A$4:$C$27,2) -> 124 | I145: 0 | J145: 124000 | K145: 0 | L145: 0 | M145: 0 | N145: 0 | O145: 7880 | P145: =O145+Tisdale!B137 -> 7880 | Q145: 7880 | R145: =intrp(Tisdale!$E$2:$F$14,Q145) -> 0 | S145: 7880 | T145: 7880 | U145: =intrp(Tisdale!$E$2:$F$14,T145) -> 0 | V145: 7880
A146: 2000-05-16 | B146: 2000 | C146: =Historical!E144 -> 0 | D146: 0 | E146: =Historical!F144 -> 0 | F146: 0 | G146: 0 | H146: =VLOOKUP(B146,'EOS Storage'!$A$4:$C$27,2) -> 124 | I146: 0 | J146: 124000 | K146: 0 | L146: 0 | M146: 0 | N146: 0 | O146: 8180 | P146: =O146+Tisdale!B138 -> 8180 | Q146: 8180 | R146: =intrp(Tisdale!$E$2:$F$14,Q146) -> 0 | S146: 8180 | T146: 8180 | U146: =intrp(Tisdale!$E$2:$F$14,T146) -> 0 | V146: 8180
A147: 2000-05-17 | B147: 2000 | C147: =Historical!E145 -> 0 | D147: 0 | E147: =Historical!F145 -> 0 | F147: 0 | G147: 0 | H147: =VLOOKUP(B147,'EOS Storage'!$A$4:$C$27,2) -> 124 | I147: 0 | J147: 124000 | K147: 0 | L147: 0 | M147: 0 | N147: 0 | O147: 9700 | P147: =O147+Tisdale!B139 -> 9700 | Q147: 9700 | R147: =intrp(Tisdale!$E$2:$F$14,Q147) -> 0 | S147: 9700 | T147: 9700 | U147: =intrp(Tisdale!$E$2:$F$14,T147) -> 0 | V147: 9700
A148: 2000-05-18 | B148: 2000 | C148: =Historical!E146 -> 0 | D148: 0 | E148: =Historical!F146 -> 0 | F148: 0 | G148: 0 | H148: =VLOOKUP(B148,'EOS Storage'!$A$4:$C$27,2) -> 124 | I148: 0 | J148: 124000 | K148: 0 | L148: 0 | M148: 0 | N148: 0 | O148: 9900 | P148: =O148+Tisdale!B140 -> 9900 | Q148: 9900 | R148: =intrp(Tisdale!$E$2:$F$14,Q148) -> 0 | S148: 9900 | T148: 9900 | U148: =intrp(Tisdale!$E$2:$F$14,T148) -> 0 | V148: 9900
A149: 2000-05-19 | B149: 2000 | C149: =Historical!E147 -> 0 | D149: 0 | E149: =Historical!F147 -> 0 | F149: 0 | G149: 0 | H149: =VLOOKUP(B149,'EOS Storage'!$A$4:$C$27,2) -> 124 | I149: 0 | J149: 124000 | K149: 0 | L149: 0 | M149: 0 | N149: 0 | O149: 9030 | P149: =O149+Tisdale!B141 -> 9030 | Q149: 9030 | R149: =intrp(Tisdale!$E$2:$F$14,Q149) -> 0 | S149: 9030 | T149: 9030 | U149: =intrp(Tisdale!$E$2:$F$14,T149) -> 0 | V149: 9030
A150: 2000-05-20 | B150: 2000 | C150: =Historical!E148 -> 0 | D150: 0 | E150: =Historical!F148 -> 0 | F150: 0 | G150: 0 | H150: =VLOOKUP(B150,'EOS Storage'!$A$4:$C$27,2) -> 124 | I150: 0 | J150: 124000 | K150: 0 | L150: 0 | M150: 0 | N150: 0 | O150: 8840 | P150: =O150+Tisdale!B142 -> 8840 | Q150: 8840 | R150: =intrp(Tisdale!$E$2:$F$14,Q150) -> 0 | S150: 8840 | T150: 8840 | U150: =intrp(Tisdale!$E$2:$F$14,T150) -> 0 | V150: 8840
A151: 2000-05-21 | B151: 2000 | C151: =Historical!E149 -> 0 | D151: 0 | E151: =Historical!F149 -> 0 | F151: 0 | G151: 0 | H151: =VLOOKUP(B151,'EOS Storage'!$A$4:$C$27,2) -> 124 | I151: 0 | J151: 124000 | K151: 0 | L151: 0 | M151: 0 | N151: 0 | O151: 9740 | P151: =O151+Tisdale!B143 -> 9740 | Q151: 9740 | R151: =intrp(Tisdale!$E$2:$F$14,Q151) -> 0 | S151: 9740 | T151: 9740 | U151: =intrp(Tisdale!$E$2:$F$14,T151) -> 0 | V151: 9740
A152: 2000-05-22 | B152: 2000 | C152: =Historical!E150 -> 0 | D152: 0 | E152: =Historical!F150 -> 0 | F152: 0 | G152: 0 | H152: =VLOOKUP(B152,'EOS Storage'!$A$4:$C$27,2) -> 124 | I152: 0 | J152: 124000 | K152: 0 | L152: 0 | M152: 0 | N152: 0 | O152: 10700 | P152: =O152+Tisdale!B144 -> 10700 | Q152: 10700 | R152: =intrp(Tisdale!$E$2:$F$14,Q152) -> 0 | S152: 10700 | T152: 10700 | U152: =intrp(Tisdale!$E$2:$F$14,T152) -> 0 | V152: 10700
A153: 2000-05-23 | B153: 2000 | C153: =Historical!E151 -> 100 | D153: 20 | E153: =Historical!F151 -> 0 | F153: 0 | G153: 100 | H153: =VLOOKUP(B153,'EOS Storage'!$A$4:$C$27,2) -> 124 | I153: 0 | J153: 124000 | K153: 0 | L153: 0 | M153: 0 | N153: 0 | O153: 10800 | P153: =O153+Tisdale!B145 -> 10800 | Q153: 10800 | R153: =intrp(Tisdale!$E$2:$F$14,Q153) -> 0 | S153: 10800 | T153: 10800 | U153: =intrp(Tisdale!$E$2:$F$14,T153) -> 0 | V153: 10800
A154: 2000-05-24 | B154: 2000 | C154: =Historical!E152 -> 0 | D154: 20 | E154: =Historical!F152 -> 0 | F154: 0 | G154: 0 | H154: =VLOOKUP(B154,'EOS Storage'!$A$4:$C$27,2) -> 124 | I154: 0 | J154: 124000 | K154: 0 | L154: 0 | M154: 0 | N154: 0 | O154: 10600 | P154: =O154+Tisdale!B146 -> 10600 | Q154: 10600 | R154: =intrp(Tisdale!$E$2:$F$14,Q154) -> 0 | S154: 10600 | T154: 10600 | U154: =intrp(Tisdale!$E$2:$F$14,T154) -> 0 | V154: 10600
A155: 2000-05-25 | B155: 2000 | C155: =Historical!E153 -> 0 | D155: 20 | E155: =Historical!F153 -> 0 | F155: 0 | G155: 0 | H155: =VLOOKUP(B155,'EOS Storage'!$A$4:$C$27,2) -> 124 | I155: 0 | J155: 124000 | K155: 0 | L155: 0 | M155: 0 | N155: 0 | O155: 10300 | P155: =O155+Tisdale!B147 -> 10300 | Q155: 10300 | R155: =intrp(Tisdale!$E$2:$F$14,Q155) -> 0 | S155: 10300 | T155: 10300 | U155: =intrp(Tisdale!$E$2:$F$14,T155) -> 0 | V155: 10300
A156: 2000-05-26 | B156: 2000 | C156: =Historical!E154 -> 0 | D156: 20 | E156: =Historical!F154 -> 0 | F156: 0 | G156: 0 | H156: =VLOOKUP(B156,'EOS Storage'!$A$4:$C$27,2) -> 124 | I156: 0 | J156: 124000 | K156: 0 | L156: 0 | M156: 0 | N156: 0 | O156: 10600 | P156: =O156+Tisdale!B148 -> 10600 | Q156: 10580 | R156: =intrp(Tisdale!$E$2:$F$14,Q156) -> 0 | S156: 10580 | T156: 10600 | U156: =intrp(Tisdale!$E$2:$F$14,T156) -> 0 | V156: 10600
A157: 2000-05-27 | B157: 2000 | C157: =Historical!E155 -> 0 | D157: 20 | E157: =Historical!F155 -> 0 | F157: 0 | G157: 0 | H157: =VLOOKUP(B157,'EOS Storage'!$A$4:$C$27,2) -> 124 | I157: 0 | J157: 124000 | K157: 0 | L157: 0 | M157: 0 | N157: 0 | O157: 9690 | P157: =O157+Tisdale!B149 -> 9690 | Q157: 9670 | R157: =intrp(Tisdale!$E$2:$F$14,Q157) -> 0 | S157: 9670 | T157: 9690 | U157: =intrp(Tisdale!$E$2:$F$14,T157) -> 0 | V157: 9690
A158: 2000-05-28 | B158: 2000 | C158: =Historical!E156 -> 0 | D158: 0 | E158: =Historical!F156 -> 0 | F158: 0 | G158: 0 | H158: =VLOOKUP(B158,'EOS Storage'!$A$4:$C$27,2) -> 124 | I158: 0 | J158: 124000 | K158: 0 | L158: 0 | M158: 0 | N158: 0 | O158: 9460 | P158: =O158+Tisdale!B150 -> 9460 | Q158: 9440 | R158: =intrp(Tisdale!$E$2:$F$14,Q158) -> 0 | S158: 9440 | T158: 9460 | U158: =intrp(Tisdale!$E$2:$F$14,T158) -> 0 | V158: 9460
A159: 2000-05-29 | B159: 2000 | C159: =Historical!E157 -> 0 | D159: 0 | E159: =Historical!F157 -> 0 | F159: 0 | G159: 0 | H159: =VLOOKUP(B159,'EOS Storage'!$A$4:$C$27,2) -> 124 | I159: 0 | J159: 124000 | K159: 0 | L159: 0 | M159: 0 | N159: 0 | O159: 9550 | P159: =O159+Tisdale!B151 -> 9550 | Q159: 9530 | R159: =intrp(Tisdale!$E$2:$F$14,Q159) -> 0 | S159: 9530 | T159: 9550 | U159: =intrp(Tisdale!$E$2:$F$14,T159) -> 0 | V159: 9550
A160: 2000-05-30 | B160: 2000 | C160: =Historical!E158 -> 0 | D160: 0 | E160: =Historical!F158 -> 0 | F160: 0 | G160: 0 | H160: =VLOOKUP(B160,'EOS Storage'!$A$4:$C$27,2) -> 124 | I160: 0 | J160: 124000 | K160: 0 | L160: 0 | M160: 0 | N160: 0 | O160: 9550 | P160: =O160+Tisdale!B152 -> 9550 | Q160: 9530 | R160: =intrp(Tisdale!$E$2:$F$14,Q160) -> 0 | S160: 9530 | T160: 9550 | U160: =intrp(Tisdale!$E$2:$F$14,T160) -> 0 | V160: 9550
A161: 2000-05-31 | B161: 2000 | C161: =Historical!E159 -> 0 | D161: 0 | E161: =Historical!F159 -> 0 | F161: 0 | G161: 0 | H161: =VLOOKUP(B161,'EOS Storage'!$A$4:$C$27,2) -> 124 | I161: 0 | J161: 124000 | K161: 0 | L161: 0 | M161: 0 | N161: 0 | O161: 9300 | P161: =O161+Tisdale!B153 -> 9300 | Q161: 9300 | R161: =intrp(Tisdale!$E$2:$F$14,Q161) -> 0 | S161: 9300 | T161: 9300 | U161: =intrp(Tisdale!$E$2:$F$14,T161) -> 0 | V161: 9300
A162: 2000-06-01 | B162: 2000 | C162: =Historical!E160 -> 0 | D162: 0 | E162: =Historical!F160 -> 0 | F162: 0 | G162: 0 | H162: =VLOOKUP(B162,'EOS Storage'!$A$4:$C$27,2) -> 124 | I162: 0 | J162: 124000 | K162: 0 | L162: 0 | M162: 0 | N162: 0 | O162: 9200 | P162: =O162+Tisdale!B154 -> 9200 | Q162: 9200 | R162: =intrp(Tisdale!$E$2:$F$14,Q162) -> 0 | S162: 9200 | T162: 9200 | U162: =intrp(Tisdale!$E$2:$F$14,T162) -> 0 | V162: 9200
A163: 2000-06-02 | B163: 2000 | C163: =Historical!E161 -> 0 | D163: 0 | E163: =Historical!F161 -> 0 | F163: 0 | G163: 0 | H163: =VLOOKUP(B163,'EOS Storage'!$A$4:$C$27,2) -> 124 | I163: 0 | J163: 124000 | K163: 0 | L163: 0 | M163: 0 | N163: 0 | O163: 8960 | P163: =O163+Tisdale!B155 -> 8960 | Q163: 8960 | R163: =intrp(Tisdale!$E$2:$F$14,Q163) -> 0 | S163: 8960 | T163: 8960 | U163: =intrp(Tisdale!$E$2:$F$14,T163) -> 0 | V163: 8960
A164: 2000-06-03 | B164: 2000 | C164: =Historical!E162 -> 0 | D164: 0 | E164: =Historical!F162 -> 0 | F164: 0 | G164: 0 | H164: =VLOOKUP(B164,'EOS Storage'!$A$4:$C$27,2) -> 124 | I164: 0 | J164: 124000 | K164: 0 | L164: 0 | M164: 0 | N164: 0 | O164: 8410 | P164: =O164+Tisdale!B156 -> 8410 | Q164: 8410 | R164: =intrp(Tisdale!$E$2:$F$14,Q164) -> 0 | S164: 8410 | T164: 8410 | U164: =intrp(Tisdale!$E$2:$F$14,T164) -> 0 | V164: 8410
A165: 2000-06-04 | B165: 2000 | C165: =Historical!E163 -> 0 | D165: 0 | E165: =Historical!F163 -> 0 | F165: 0 | G165: 0 | H165: =VLOOKUP(B165,'EOS Storage'!$A$4:$C$27,2) -> 124 | I165: 0 | J165: 124000 | K165: 0 | L165: 0 | M165: 0 | N165: 0 | O165: 8070 | P165: =O165+Tisdale!B157 -> 8070 | Q165: 8070 | R165: =intrp(Tisdale!$E$2:$F$14,Q165) -> 0 | S165: 8070 | T165: 8070 | U165: =intrp(Tisdale!$E$2:$F$14,T165) -> 0 | V165: 8070
A166: 2000-06-05 | B166: 2000 | C166: =Historical!E164 -> 0 | D166: 0 | E166: =Historical!F164 -> 0 | F166: 0 | G166: 0 | H166: =VLOOKUP(B166,'EOS Storage'!$A$4:$C$27,2) -> 124 | I166: 0 | J166: 124000 | K166: 0 | L166: 0 | M166: 0 | N166: 0 | O166: 7960 | P166: =O166+Tisdale!B158 -> 7960 | Q166: 7960 | R166: =intrp(Tisdale!$E$2:$F$14,Q166) -> 0 | S166: 7960 | T166: 7960 | U166: =intrp(Tisdale!$E$2:$F$14,T166) -> 0 | V166: 7960
A167: 2000-06-06 | B167: 2000 | C167: =Historical!E165 -> 0 | D167: 0 | E167: =Historical!F165 -> 0 | F167: 0 | G167: 0 | H167: =VLOOKUP(B167,'EOS Storage'!$A$4:$C$27,2) -> 124 | I167: 0 | J167: 124000 | K167: 0 | L167: 0 | M167: 0 | N167: 0 | O167: 7730 | P167: =O167+Tisdale!B159 -> 7730 | Q167: 7730 | R167: =intrp(Tisdale!$E$2:$F$14,Q167) -> 0 | S167: 7730 | T167: 7730 | U167: =intrp(Tisdale!$E$2:$F$14,T167) -> 0 | V167: 7730
A168: 2000-06-07 | B168: 2000 | C168: =Historical!E166 -> 0 | D168: 0 | E168: =Historical!F166 -> 0 | F168: 0 | G168: 0 | H168: =VLOOKUP(B168,'EOS Storage'!$A$4:$C$27,2) -> 124 | I168: 0 | J168: 124000 | K168: 0 | L168: 0 | M168: 0 | N168: 0 | O168: 7280 | P168: =O168+Tisdale!B160 -> 7280 | Q168: 7280 | R168: =intrp(Tisdale!$E$2:$F$14,Q168) -> 0 | S168: 7280 | T168: 7280 | U168: =intrp(Tisdale!$E$2:$F$14,T168) -> 0 | V168: 7280
A169: 2000-06-08 | B169: 2000 | C169: =Historical!E167 -> 0 | D169: 0 | E169: =Historical!F167 -> 0 | F169: 0 | G169: 0 | H169: =VLOOKUP(B169,'EOS Storage'!$A$4:$C$27,2) -> 124 | I169: 0 | J169: 124000 | K169: 0 | L169: 0 | M169: 0 | N169: 0 | O169: 7400 | P169: =O169+Tisdale!B161 -> 7400 | Q169: 7400 | R169: =intrp(Tisdale!$E$2:$F$14,Q169) -> 0 | S169: 7400 | T169: 7400 | U169: =intrp(Tisdale!$E$2:$F$14,T169) -> 0 | V169: 7400
A170: 2000-06-09 | B170: 2000 | C170: =Historical!E168 -> 0 | D170: 0 | E170: =Historical!F168 -> 0 | F170: 0 | G170: 0 | H170: =VLOOKUP(B170,'EOS Storage'!$A$4:$C$27,2) -> 124 | I170: 0 | J170: 124000 | K170: 0 | L170: 0 | M170: 0 | N170: 0 | O170: 7700 | P170: =O170+Tisdale!B162 -> 7700 | Q170: 7700 | R170: =intrp(Tisdale!$E$2:$F$14,Q170) -> 0 | S170: 7700 | T170: 7700 | U170: =intrp(Tisdale!$E$2:$F$14,T170) -> 0 | V170: 7700
A171: 2000-06-10 | B171: 2000 | C171: =Historical!E169 -> 0 | D171: 0 | E171: =Historical!F169 -> 0 | F171: 0 | G171: 0 | H171: =VLOOKUP(B171,'EOS Storage'!$A$4:$C$27,2) -> 124 | I171: 0 | J171: 124000 | K171: 0 | L171: 0 | M171: 0 | N171: 0 | O171: 7900 | P171: =O171+Tisdale!B163 -> 7900 | Q171: 7900 | R171: =intrp(Tisdale!$E$2:$F$14,Q171) -> 0 | S171: 7900 | T171: 7900 | U171: =intrp(Tisdale!$E$2:$F$14,T171) -> 0 | V171: 7900
A172: 2000-06-11 | B172: 2000 | C172: =Historical!E170 -> 0 | D172: 0 | E172: =Historical!F170 -> 0 | F172: 0 | G172: 0 | H172: =VLOOKUP(B172,'EOS Storage'!$A$4:$C$27,2) -> 124 | I172: 0 | J172: 124000 | K172: 0 | L172: 0 | M172: 0 | N172: 0 | O172: 8000 | P172: =O172+Tisdale!B164 -> 8000 | Q172: 8000 | R172: =intrp(Tisdale!$E$2:$F$14,Q172) -> 0 | S172: 8000 | T172: 8000 | U172: =intrp(Tisdale!$E$2:$F$14,T172) -> 0 | V172: 8000
A173: 2000-06-12 | B173: 2000 | C173: =Historical!E171 -> 0 | D173: 0 | E173: =Historical!F171 -> 0 | F173: 0 | G173: 0 | H173: =VLOOKUP(B173,'EOS Storage'!$A$4:$C$27,2) -> 124 | I173: 0 | J173: 124000 | K173: 0 | L173: 0 | M173: 0 | N173: 0 | O173: 8000 | P173: =O173+Tisdale!B165 -> 8000 | Q173: 8000 | R173: =intrp(Tisdale!$E$2:$F$14,Q173) -> 0 | S173: 8000 | T173: 8000 | U173: =intrp(Tisdale!$E$2:$F$14,T173) -> 0 | V173: 8000
A174: 2000-06-13 | B174: 2000 | C174: =Historical!E172 -> 0 | D174: 0 | E174: =Historical!F172 -> 0 | F174: 0 | G174: 0 | H174: =VLOOKUP(B174,'EOS Storage'!$A$4:$C$27,2) -> 124 | I174: 0 | J174: 124000 | K174: 0 | L174: 0 | M174: 0 | N174: 0 | O174: 8030 | P174: =O174+Tisdale!B166 -> 8030 | Q174: 8030 | R174: =intrp(Tisdale!$E$2:$F$14,Q174) -> 0 | S174: 8030 | T174: 8030 | U174: =intrp(Tisdale!$E$2:$F$14,T174) -> 0 | V174: 8030
A175: 2000-06-14 | B175: 2000 | C175: =Historical!E173 -> 0 | D175: 0 | E175: =Historical!F173 -> 0 | F175: 0 | G175: 0 | H175: =VLOOKUP(B175,'EOS Storage'!$A$4:$C$27,2) -> 124 | I175: 0 | J175: 124000 | K175: 0 | L175: 0 | M175: 0 | N175: 0 | O175: 8980 | P175: =O175+Tisdale!B167 -> 8980 | Q175: 8980 | R175: =intrp(Tisdale!$E$2:$F$14,Q175) -> 0 | S175: 8980 | T175: 8980 | U175: =intrp(Tisdale!$E$2:$F$14,T175) -> 0 | V175: 8980
A176: 2000-06-15 | B176: 2000 | C176: =Historical!E174 -> 0 | D176: 0 | E176: =Historical!F174 -> 0 | F176: 0 | G176: 0 | H176: =VLOOKUP(B176,'EOS Storage'!$A$4:$C$27,2) -> 124 | I176: 0 | J176: 124000 | K176: 0 | L176: 0 | M176: 0 | N176: 0 | O176: 9490 | P176: =O176+Tisdale!B168 -> 9490 | Q176: 9490 | R176: =intrp(Tisdale!$E$2:$F$14,Q176) -> 0 | S176: 9490 | T176: 9490 | U176: =intrp(Tisdale!$E$2:$F$14,T176) -> 0 | V176: 9490
A177: 2000-06-16 | B177: 2000 | C177: =Historical!E175 -> 0 | D177: 0 | E177: =Historical!F175 -> 0 | F177: 0 | G177: 0 | H177: =VLOOKUP(B177,'EOS Storage'!$A$4:$C$27,2) -> 124 | I177: 0 | J177: 124000 | K177: 0 | L177: 0 | M177: 0 | N177: 0 | O177: 9360 | P177: =O177+Tisdale!B169 -> 9360 | Q177: 9360 | R177: =intrp(Tisdale!$E$2:$F$14,Q177) -> 0 | S177: 9360 | T177: 9360 | U177: =intrp(Tisdale!$E$2:$F$14,T177) -> 0 | V177: 9360
A178: 2000-06-17 | B178: 2000 | C178: =Historical!E176 -> 0 | D178: 0 | E178: =Historical!F176 -> 0 | F178: 0 | G178: 0 | H178: =VLOOKUP(B178,'EOS Storage'!$A$4:$C$27,2) -> 124 | I178: 0 | J178: 124000 | K178: 0 | L178: 0 | M178: 0 | N178: 0 | O178: 9050 | P178: =O178+Tisdale!B170 -> 9050 | Q178: 9050 | R178: =intrp(Tisdale!$E$2:$F$14,Q178) -> 0 | S178: 9050 | T178: 9050 | U178: =intrp(Tisdale!$E$2:$F$14,T178) -> 0 | V178: 9050
A179: 2000-06-18 | B179: 2000 | C179: =Historical!E177 -> 0 | D179: 0 | E179: =Historical!F177 -> 0 | F179: 0 | G179: 0 | H179: =VLOOKUP(B179,'EOS Storage'!$A$4:$C$27,2) -> 124 | I179: 0 | J179: 124000 | K179: 0 | L179: 0 | M179: 0 | N179: 0 | O179: 8560 | P179: =O179+Tisdale!B171 -> 8560 | Q179: 8560 | R179: =intrp(Tisdale!$E$2:$F$14,Q179) -> 0 | S179: 8560 | T179: 8560 | U179: =intrp(Tisdale!$E$2:$F$14,T179) -> 0 | V179: 8560
A180: 2000-06-19 | B180: 2000 | C180: =Historical!E178 -> 0 | D180: 0 | E180: =Historical!F178 -> 0 | F180: 0 | G180: 0 | H180: =VLOOKUP(B180,'EOS Storage'!$A$4:$C$27,2) -> 124 | I180: 0 | J180: 124000 | K180: 0 | L180: 0 | M180: 0 | N180: 0 | O180: 8300 | P180: =O180+Tisdale!B172 -> 8300 | Q180: 8300 | R180: =intrp(Tisdale!$E$2:$F$14,Q180) -> 0 | S180: 8300 | T180: 8300 | U180: =intrp(Tisdale!$E$2:$F$14,T180) -> 0 | V180: 8300
A181: 2000-06-20 | B181: 2000 | C181: =Historical!E179 -> 0 | D181: 0 | E181: =Historical!F179 -> 0 | F181: 0 | G181: 0 | H181: =VLOOKUP(B181,'EOS Storage'!$A$4:$C$27,2) -> 124 | I181: 0 | J181: 124000 | K181: 0 | L181: 0 | M181: 0 | N181: 0 | O181: 8050 | P181: =O181+Tisdale!B173 -> 8050 | Q181: 8050 | R181: =intrp(Tisdale!$E$2:$F$14,Q181) -> 0 | S181: 8050 | T181: 8050 | U181: =intrp(Tisdale!$E$2:$F$14,T181) -> 0 | V181: 8050
A182: 2000-06-21 | B182: 2000 | C182: =Historical!E180 -> 0 | D182: 0 | E182: =Historical!F180 -> 0 | F182: 0 | G182: 0 | H182: =VLOOKUP(B182,'EOS Storage'!$A$4:$C$27,2) -> 124 | I182: 0 | J182: 124000 | K182: 0 | L182: 0 | M182: 0 | N182: 0 | O182: 7830 | P182: =O182+Tisdale!B174 -> 7830 | Q182: 7830 | R182: =intrp(Tisdale!$E$2:$F$14,Q182) -> 0 | S182: 7830 | T182: 7830 | U182: =intrp(Tisdale!$E$2:$F$14,T182) -> 0 | V182: 7830
A183: 2000-06-22 | B183: 2000 | C183: =Historical!E181 -> 0 | D183: 0 | E183: =Historical!F181 -> 0 | F183: 0 | G183: 0 | H183: =VLOOKUP(B183,'EOS Storage'!$A$4:$C$27,2) -> 124 | I183: 0 | J183: 124000 | K183: 0 | L183: 0 | M183: 0 | N183: 0 | O183: 8070 | P183: =O183+Tisdale!B175 -> 8070 | Q183: 8070 | R183: =intrp(Tisdale!$E$2:$F$14,Q183) -> 0 | S183: 8070 | T183: 8070 | U183: =intrp(Tisdale!$E$2:$F$14,T183) -> 0 | V183: 8070
A184: 2000-06-23 | B184: 2000 | C184: =Historical!E182 -> 0 | D184: 0 | E184: =Historical!F182 -> 0 | F184: 0 | G184: 0 | H184: =VLOOKUP(B184,'EOS Storage'!$A$4:$C$27,2) -> 124 | I184: 0 | J184: 124000 | K184: 0 | L184: 0 | M184: 0 | N184: 0 | O184: 7970 | P184: =O184+Tisdale!B176 -> 7970 | Q184: 7970 | R184: =intrp(Tisdale!$E$2:$F$14,Q184) -> 0 | S184: 7970 | T184: 7970 | U184: =intrp(Tisdale!$E$2:$F$14,T184) -> 0 | V184: 7970
A185: 2000-06-24 | B185: 2000 | C185: =Historical!E183 -> 0 | D185: 0 | E185: =Historical!F183 -> 0 | F185: 0 | G185: 0 | H185: =VLOOKUP(B185,'EOS Storage'!$A$4:$C$27,2) -> 124 | I185: 0 | J185: 124000 | K185: 0 | L185: 0 | M185: 0 | N185: 0 | O185: 7690 | P185: =O185+Tisdale!B177 -> 7690 | Q185: 7690 | R185: =intrp(Tisdale!$E$2:$F$14,Q185) -> 0 | S185: 7690 | T185: 7690 | U185: =intrp(Tisdale!$E$2:$F$14,T185) -> 0 | V185: 7690
A186: 2000-06-25 | B186: 2000 | C186: =Historical!E184 -> 0 | D186: 0 | E186: =Historical!F184 -> 0 | F186: 0 | G186: 0 | H186: =VLOOKUP(B186,'EOS Storage'!$A$4:$C$27,2) -> 124 | I186: 0 | J186: 124000 | K186: 0 | L186: 0 | M186: 0 | N186: 0 | O186: 7710 | P186: =O186+Tisdale!B178 -> 7710 | Q186: 7710 | R186: =intrp(Tisdale!$E$2:$F$14,Q186) -> 0 | S186: 7710 | T186: 7710 | U186: =intrp(Tisdale!$E$2:$F$14,T186) -> 0 | V186: 7710
A187: 2000-06-26 | B187: 2000 | C187: =Historical!E185 -> 0 | D187: 0 | E187: =Historical!F185 -> 0 | F187: 0 | G187: 0 | H187: =VLOOKUP(B187,'EOS Storage'!$A$4:$C$27,2) -> 124 | I187: 0 | J187: 124000 | K187: 0 | L187: 0 | M187: 0 | N187: 0 | O187: 7930 | P187: =O187+Tisdale!B179 -> 7930 | Q187: 7930 | R187: =intrp(Tisdale!$E$2:$F$14,Q187) -> 0 | S187: 7930 | T187: 7930 | U187: =intrp(Tisdale!$E$2:$F$14,T187) -> 0 | V187: 7930
A188: 2000-06-27 | B188: 2000 | C188: =Historical!E186 -> 0 | D188: 0 | E188: =Historical!F186 -> 0 | F188: 0 | G188: 0 | H188: =VLOOKUP(B188,'EOS Storage'!$A$4:$C$27,2) -> 124 | I188: 0 | J188: 124000 | K188: 0 | L188: 0 | M188: 0 | N188: 0 | O188: 8130 | P188: =O188+Tisdale!B180 -> 8130 | Q188: 8130 | R188: =intrp(Tisdale!$E$2:$F$14,Q188) -> 0 | S188: 8130 | T188: 8130 | U188: =intrp(Tisdale!$E$2:$F$14,T188) -> 0 | V188: 8130
A189: 2000-06-28 | B189: 2000 | C189: =Historical!E187 -> 0 | D189: 0 | E189: =Historical!F187 -> 0 | F189: 0 | G189: 0 | H189: =VLOOKUP(B189,'EOS Storage'!$A$4:$C$27,2) -> 124 | I189: 0 | J189: 124000 | K189: 0 | L189: 0 | M189: 0 | N189: 0 | O189: 8200 | P189: =O189+Tisdale!B181 -> 8200 | Q189: 8200 | R189: =intrp(Tisdale!$E$2:$F$14,Q189) -> 0 | S189: 8200 | T189: 8200 | U189: =intrp(Tisdale!$E$2:$F$14,T189) -> 0 | V189: 8200
A190: 2000-06-29 | B190: 2000 | C190: =Historical!E188 -> 0 | D190: 0 | E190: =Historical!F188 -> 0 | F190: 0 | G190: 0 | H190: =VLOOKUP(B190,'EOS Storage'!$A$4:$C$27,2) -> 124 | I190: 0 | J190: 124000 | K190: 0 | L190: 0 | M190: 0 | N190: 0 | O190: 8410 | P190: =O190+Tisdale!B182 -> 8410 | Q190: 8410 | R190: =intrp(Tisdale!$E$2:$F$14,Q190) -> 0 | S190: 8410 | T190: 8410 | U190: =intrp(Tisdale!$E$2:$F$14,T190) -> 0 | V190: 8410
A191: 2000-06-30 | B191: 2000 | C191: =Historical!E189 -> 0 | D191: 0 | E191: =Historical!F189 -> 0 | F191: 0 | G191: 0 | H191: =VLOOKUP(B191,'EOS Storage'!$A$4:$C$27,2) -> 124 | I191: 0 | J191: 124000 | K191: 0 | L191: 0 | M191: 0 | N191: 0 | O191: 8580 | P191: =O191+Tisdale!B183 -> 8580 | Q191: 8580 | R191: =intrp(Tisdale!$E$2:$F$14,Q191) -> 0 | S191: 8580 | T191: 8580 | U191: =intrp(Tisdale!$E$2:$F$14,T191) -> 0 | V191: 8580
A192: 2000-07-01 | B192: 2000 | C192: =Historical!E190 -> 0 | D192: 0 | E192: =Historical!F190 -> 0 | F192: 0 | G192: 0 | H192: =VLOOKUP(B192,'EOS Storage'!$A$4:$C$27,2) -> 124 | I192: 0 | J192: 124000 | K192: 0 | L192: 0 | M192: 0 | N192: 0 | O192: 8760 | P192: =O192+Tisdale!B184 -> 8760 | Q192: 8760 | R192: =intrp(Tisdale!$E$2:$F$14,Q192) -> 0 | S192: 8760 | T192: 8760 | U192: =intrp(Tisdale!$E$2:$F$14,T192) -> 0 | V192: 8760
A193: 2000-07-02 | B193: 2000 | C193: =Historical!E191 -> 0 | D193: 0 | E193: =Historical!F191 -> 0 | F193: 0 | G193: 0 | H193: =VLOOKUP(B193,'EOS Storage'!$A$4:$C$27,2) -> 124 | I193: 0 | J193: 124000 | K193: 0 | L193: 0 | M193: 0 | N193: 0 | O193: 8700 | P193: =O193+Tisdale!B185 -> 8700 | Q193: 8700 | R193: =intrp(Tisdale!$E$2:$F$14,Q193) -> 0 | S193: 8700 | T193: 8700 | U193: =intrp(Tisdale!$E$2:$F$14,T193) -> 0 | V193: 8700
A194: 2000-07-03 | B194: 2000 | C194: =Historical!E192 -> 0 | D194: 0 | E194: =Historical!F192 -> 0 | F194: 0 | G194: 0 | H194: =VLOOKUP(B194,'EOS Storage'!$A$4:$C$27,2) -> 124 | I194: 0 | J194: 124000 | K194: 0 | L194: 0 | M194: 0 | N194: 0 | O194: 8700 | P194: =O194+Tisdale!B186 -> 8700 | Q194: 8700 | R194: =intrp(Tisdale!$E$2:$F$14,Q194) -> 0 | S194: 8700 | T194: 8700 | U194: =intrp(Tisdale!$E$2:$F$14,T194) -> 0 | V194: 8700
A195: 2000-07-04 | B195: 2000 | C195: =Historical!E193 -> 0 | D195: 0 | E195: =Historical!F193 -> 0 | F195: 0 | G195: 0 | H195: =VLOOKUP(B195,'EOS Storage'!$A$4:$C$27,2) -> 124 | I195: 0 | J195: 124000 | K195: 0 | L195: 0 | M195: 0 | N195: 0 | O195: 8930 | P195: =O195+Tisdale!B187 -> 8930 | Q195: 8930 | R195: =intrp(Tisdale!$E$2:$F$14,Q195) -> 0 | S195: 8930 | T195: 8930 | U195: =intrp(Tisdale!$E$2:$F$14,T195) -> 0 | V195: 8930
A196: 2000-07-05 | B196: 2000 | C196: =Historical!E194 -> 0 | D196: 0 | E196: =Historical!F194 -> 0 | F196: 0 | G196: 0 | H196: =VLOOKUP(B196,'EOS Storage'!$A$4:$C$27,2) -> 124 | I196: 0 | J196: 124000 | K196: 0 | L196: 0 | M196: 0 | N196: 0 | O196: 9080 | P196: =O196+Tisdale!B188 -> 9080 | Q196: 9080 | R196: =intrp(Tisdale!$E$2:$F$14,Q196) -> 0 | S196: 9080 | T196: 9080 | U196: =intrp(Tisdale!$E$2:$F$14,T196) -> 0 | V196: 9080
A197: 2000-07-06 | B197: 2000 | C197: =Historical!E195 -> 0 | D197: 0 | E197: =Historical!F195 -> 0 | F197: 0 | G197: 0 | H197: =VLOOKUP(B197,'EOS Storage'!$A$4:$C$27,2) -> 124 | I197: 0 | J197: 124000 | K197: 0 | L197: 0 | M197: 0 | N197: 0 | O197: 9660 | P197: =O197+Tisdale!B189 -> 9660 | Q197: 9660 | R197: =intrp(Tisdale!$E$2:$F$14,Q197) -> 0 | S197: 9660 | T197: 9660 | U197: =intrp(Tisdale!$E$2:$F$14,T197) -> 0 | V197: 9660
A198: 2000-07-07 | B198: 2000 | C198: =Historical!E196 -> 0 | D198: 0 | E198: =Historical!F196 -> 0 | F198: 0 | G198: 0 | H198: =VLOOKUP(B198,'EOS Storage'!$A$4:$C$27,2) -> 124 | I198: 0 | J198: 124000 | K198: 0 | L198: 0 | M198: 0 | N198: 0 | O198: 9770 | P198: =O198+Tisdale!B190 -> 9770 | Q198: 9770 | R198: =intrp(Tisdale!$E$2:$F$14,Q198) -> 0 | S198: 9770 | T198: 9770 | U198: =intrp(Tisdale!$E$2:$F$14,T198) -> 0 | V198: 9770
A199: 2000-07-08 | B199: 2000 | C199: =Historical!E197 -> 0 | D199: 0 | E199: =Historical!F197 -> 0 | F199: 0 | G199: 0 | H199: =VLOOKUP(B199,'EOS Storage'!$A$4:$C$27,2) -> 124 | I199: 0 | J199: 124000 | K199: 0 | L199: 0 | M199: 0 | N199: 0 | O199: 9730 | P199: =O199+Tisdale!B191 -> 9730 | Q199: 9730 | R199: =intrp(Tisdale!$E$2:$F$14,Q199) -> 0 | S199: 9730 | T199: 9730 | U199: =intrp(Tisdale!$E$2:$F$14,T199) -> 0 | V199: 9730
A200: 2000-07-09 | B200: 2000 | C200: =Historical!E198 -> 0 | D200: 0 | E200: =Historical!F198 -> 0 | F200: 0 | G200: 0 | H200: =VLOOKUP(B200,'EOS Storage'!$A$4:$C$27,2) -> 124 | I200: 0 | J200: 124000 | K200: 0 | L200: 0 | M200: 0 | N200: 0 | O200: 9800 | P200: =O200+Tisdale!B192 -> 9800 | Q200: 9800 | R200: =intrp(Tisdale!$E$2:$F$14,Q200) -> 0 | S200: 9800 | T200: 9800 | U200: =intrp(Tisdale!$E$2:$F$14,T200) -> 0 | V200: 9800
A201: 2000-07-10 | B201: 2000 | C201: =Historical!E199 -> 0 | D201: 0 | E201: =Historical!F199 -> 0 | F201: 0 | G201: 0 | H201: =VLOOKUP(B201,'EOS Storage'!$A$4:$C$27,2) -> 124 | I201: 0 | J201: 124000 | K201: 0 | L201: 0 | M201: 0 | N201: 0 | O201: 9860 | P201: =O201+Tisdale!B193 -> 9860 | Q201: 9860 | R201: =intrp(Tisdale!$E$2:$F$14,Q201) -> 0 | S201: 9860 | T201: 9860 | U201: =intrp(Tisdale!$E$2:$F$14,T201) -> 0 | V201: 9860
... 4299 more rows

Sheet Wilkins Graph

Sheet Tisdale
A1: Date | B1: Tisdale Spill | E1: Sac R upstream of Tisdale Weir (cfs) | F1: Tisdale Weir Spill (cfs)
A2: 2000-01-01 | B2: 0 | E2: 0 | F2: 0
A3: 2000-01-02 | B3: 0 | E3: 23500 | F3: 0
A4: 2000-01-03 | B4: 0 | E4: 26200 | F4: 2000
A5: 2000-01-04 | B5: 0 | E5: 27600 | F5: 3000
A6: 2000-01-05 | B6: 0 | E6: 29600 | F6: 4000
A7: 2000-01-06 | B7: 0 | E7: 32000 | F7: 6000
A8: 2000-01-07 | B8: 0 | E8: 37000 | F8: 10000
A9: 2000-01-08 | B9: 0 | E9: 42500 | F9: 15000
A10: 2000-01-09 | B10: 0 | E10: 50400 | F10: 22000
A11: 2000-01-10 | B11: 0 | E11: 59000 | F11: 30000
A12: 2000-01-11 | B12: 0 | E12: 69600 | F12: 40000
A13: 2000-01-12 | B13: 0 | E13: 82400 | F13: 52000
A14: 2000-01-13 | B14: 0 | E14: 96000 | F14: 65000
A15: 2000-01-14 | B15: 0
A16: 2000-01-15 | B16: 0
A17: 2000-01-16 | B17: 0
A18: 2000-01-17 | B18: 14822.6
A19: 2000-01-18 | B19: 14568
A20: 2000-01-19 | B20: 0
A21: 2000-01-20 | B21: 0
A22: 2000-01-21 | B22: 0
A23: 2000-01-22 | B23: 0
A24: 2000-01-23 | B24: 0
A25: 2000-01-24 | B25: 0
A26: 2000-01-25 | B26: 622.4
A27: 2000-01-26 | B27: 1356.41
A28: 2000-01-27 | B28: 820.66
A29: 2000-01-28 | B29: 137.77
A30: 2000-01-29 | B30: 0
A31: 2000-01-30 | B31: 0
A32: 2000-01-31 | B32: 2005.42
A33: 2000-02-01 | B33: 6429.82
A34: 2000-02-02 | B34: 3754.31
A35: 2000-02-03 | B35: 1388.27
A36: 2000-02-04 | B36: 132.97
A37: 2000-02-05 | B37: 221.67
A38: 2000-02-06 | B38: 270.14
A39: 2000-02-07 | B39: 1243.89
A40: 2000-02-08 | B40: 224.16
A41: 2000-02-09 | B41: 0
A42: 2000-02-10 | B42: 0
A43: 2000-02-11 | B43: 1027.12
A44: 2000-02-12 | B44: 6947.54
A45: 2000-02-13 | B45: 13992.46
A46: 2000-02-14 | B46: 14721.86
A47: 2000-02-15 | B47: 16028.54
A48: 2000-02-16 | B48: 16242.71
A49: 2000-02-17 | B49: 15680.26
A50: 2000-02-18 | B50: 15219.43
A51: 2000-02-19 | B51: 14823.16
A52: 2000-02-20 | B52: 14531.4
A53: 2000-02-21 | B53: 14285.76
A54: 2000-02-22 | B54: 14362.72
A55: 2000-02-23 | B55: 14685.29
A56: 2000-02-24 | B56: 15580.16
A57: 2000-02-25 | B57: 15604.85
A58: 2000-02-26 | B58: 15072.61
A59: 2000-02-27 | B59: 15075.98
A60: 2000-02-28 | B60: 15721.87
A61: 2000-02-29 | B61: 15904.65
A62: 2000-03-01 | B62: 15724.32
A63: 2000-03-02 | B63: 15725.3
A64: 2000-03-03 | B64: 15627.94
A65: 2000-03-04 | B65: 15500.8
A66: 2000-03-05 | B66: 15417.62
A67: 2000-03-06 | B67: 15813.95
A68: 2000-03-07 | B68: 16159.67
A69: 2000-03-08 | B69: 15703.64
A70: 2000-03-09 | B70: 15346.4
A71: 2000-03-10 | B71: 15393.76
A72: 2000-03-11 | B72: 15370.6
A73: 2000-03-12 | B73: 14930.98
A74: 2000-03-13 | B74: 14288.83
A75: 2000-03-14 | B75: 13602.11
A76: 2000-03-15 | B76: 12346.2
A77: 2000-03-16 | B77: 8807.18
A78: 2000-03-17 | B78: 4156.69
A79: 2000-03-18 | B79: 1424.91
A80: 2000-03-19 | B80: 192.45
A81: 2000-03-20 | B81: 0
A82: 2000-03-21 | B82: 0
A83: 2000-03-22 | B83: 0
A84: 2000-03-23 | B84: 0
A85: 2000-03-24 | B85: 0
A86: 2000-03-25 | B86: 0
A87: 2000-03-26 | B87: 0
A88: 2000-03-27 | B88: 0
A89: 2000-03-28 | B89: 0
A90: 2000-03-29 | B90: 0
A91: 2000-03-30 | B91: 0
A92: 2000-03-31 | B92: 0
A93: 2000-04-01 | B93: 0
A94: 2000-04-02 | B94: 0
A95: 2000-04-03 | B95: 0
A96: 2000-04-04 | B96: 0
A97: 2000-04-05 | B97: 0
A98: 2000-04-06 | B98: 0
A99: 2000-04-07 | B99: 0
A100: 2000-04-08 | B100: 0
A101: 2000-04-09 | B101: 0
A102: 2000-04-10 | B102: 0
A103: 2000-04-11 | B103: 0
A104: 2000-04-12 | B104: 0
A105: 2000-04-13 | B105: 0
A106: 2000-04-14 | B106: 0
A107: 2000-04-15 | B107: 0
A108: 2000-04-16 | B108: 0
A109: 2000-04-17 | B109: 0
A110: 2000-04-18 | B110: 0
A111: 2000-04-19 | B111: 0
A112: 2000-04-20 | B112: 0
A113: 2000-04-21 | B113: 0
A114: 2000-04-22 | B114: 0
A115: 2000-04-23 | B115: 0
A116: 2000-04-24 | B116: 0
A117: 2000-04-25 | B117: 0
A118: 2000-04-26 | B118: 0
A119: 2000-04-27 | B119: 0
A120: 2000-04-28 | B120: 0
A121: 2000-04-29 | B121: 0
A122: 2000-04-30 | B122: 0
A123: 2000-05-01 | B123: 0
A124: 2000-05-02 | B124: 0
A125: 2000-05-03 | B125: 0
A126: 2000-05-04 | B126: 0
A127: 2000-05-05 | B127: 0
A128: 2000-05-06 | B128: 0
A129: 2000-05-07 | B129: 0
A130: 2000-05-08 | B130: 0
A131: 2000-05-09 | B131: 0
A132: 2000-05-10 | B132: 0
A133: 2000-05-11 | B133: 0
A134: 2000-05-12 | B134: 0
A135: 2000-05-13 | B135: 0
A136: 2000-05-14 | B136: 0
A137: 2000-05-15 | B137: 0
A138: 2000-05-16 | B138: 0
A139: 2000-05-17 | B139: 0
A140: 2000-05-18 | B140: 0
A141: 2000-05-19 | B141: 0
A142: 2000-05-20 | B142: 0
A143: 2000-05-21 | B143: 0
A144: 2000-05-22 | B144: 0
A145: 2000-05-23 | B145: 0
A146: 2000-05-24 | B146: 0
A147: 2000-05-25 | B147: 0
A148: 2000-05-26 | B148: 0
A149: 2000-05-27 | B149: 0
A150: 2000-05-28 | B150: 0
A151: 2000-05-29 | B151: 0
A152: 2000-05-30 | B152: 0
A153: 2000-05-31 | B153: 0
A154: 2000-06-01 | B154: 0
A155: 2000-06-02 | B155: 0
A156: 2000-06-03 | B156: 0
A157: 2000-06-04 | B157: 0
A158: 2000-06-05 | B158: 0
A159: 2000-06-06 | B159: 0
A160: 2000-06-07 | B160: 0
A161: 2000-06-08 | B161: 0
A162: 2000-06-09 | B162: 0
A163: 2000-06-10 | B163: 0
A164: 2000-06-11 | B164: 0
A165: 2000-06-12 | B165: 0
A166: 2000-06-13 | B166: 0
A167: 2000-06-14 | B167: 0
A168: 2000-06-15 | B168: 0
A169: 2000-06-16 | B169: 0
A170: 2000-06-17 | B170: 0
A171: 2000-06-18 | B171: 0
A172: 2000-06-19 | B172: 0
A173: 2000-06-20 | B173: 0
A174: 2000-06-21 | B174: 0
A175: 2000-06-22 | B175: 0
A176: 2000-06-23 | B176: 0
A177: 2000-06-24 | B177: 0
A178: 2000-06-25 | B178: 0
A179: 2000-06-26 | B179: 0
A180: 2000-06-27 | B180: 0
A181: 2000-06-28 | B181: 0
A182: 2000-06-29 | B182: 0
A183: 2000-06-30 | B183: 0
A184: 2000-07-01 | B184: 0
A185: 2000-07-02 | B185: 0
A186: 2000-07-03 | B186: 0
A187: 2000-07-04 | B187: 0
A188: 2000-07-05 | B188: 0
A189: 2000-07-06 | B189: 0
A190: 2000-07-07 | B190: 0
A191: 2000-07-08 | B191: 0
A192: 2000-07-09 | B192: 0
A193: 2000-07-10 | B193: 0
A194: 2000-07-11 | B194: 0
A195: 2000-07-12 | B195: 0
A196: 2000-07-13 | B196: 0
A197: 2000-07-14 | B197: 0
A198: 2000-07-15 | B198: 0
A199: 2000-07-16 | B199: 0
A200: 2000-07-17 | B200: 0
... 7745 more rows
